Cogmind - Beta 11 *** ADVENTURER MODE // 2022.04.17 @ 23:09:20 Player: Fgdfgfthgr Result: Escaped! Performance ------------- Evolutions (9) 4500 Regions Visited (39) 7800 Robots Destroyed (327) 1635 Value Destroyed (14972) 14972 Prototype IDs (102) 2040 Alien Tech Used (3) 600 Bonus (15410) 15410 TOTAL SCORE: 46957 Bonus ------- High Alert Combat Kills 1049 Follower Combat Kills 2692 Network Hubs Disabled 200 Met Data Miner 300 Met Zhirov 300 Met Warlord at Base 500 MAIN.C Attacked Warlord 500 Warlord Defense Kill 702 Built Enhanced Grunts 300 A7 Reached Mainframe 300 Met R17 at Cetus 500 Met R17 at Research 2000 Acquired SGEMP 2000 Delivered SGEMP 2000 Win 3000 Friendly Fire -933 Cogmind --------- Core Integrity 49/1600 Matter 259/300 Energy 84/100 System Corruption 5% Temperature Cool (0) Movement Core (50) Location To Epsilon Eridani Parts ------- > --- POWER (2) -------- (None) > --- PROPULSION (6) --- (None) > --- UTILITY (14) ----- 2N-1CE's Frost Array Experimental Core Analyzer Experimental Armor Integrity Analyzer Graphene Brace System Mapper > --- WEAPON (3) ------- (None) > --- INVENTORY (5) ---- Antimissile System System Purifier Improved Potential Cannon Plasma Lance Peak State ------------ > --- POWER ------------ Vortex Chain Reactor > --- PROPULSION ------- Linear Gravjet Cooled Antigrav System Cooled Antigrav System Combat Antigrav System Combat Antigrav System Combat Linear Gravjet > --- UTILITY ---------- Experimental Power Amplifier 2N-1CE's Frost Array Large Storage Unit Active Sensor Suite Advanced Targeting Computer Experimental Core Analyzer Experimental Armor Integrity Analyzer Precision Energy Filter Advanced Transmission Jammer Centrium Light Armor Plating Graphene Brace System Mapper > --- WEAPON ----------- Core Stripper > --- INVENTORY -------- Graviton Reactor Combat Linear Gravjet Centrium Medium Armor Plating Antimissile System System Purifier Long-range Proton Cannon Enhanced Nova Cannon Enhanced Nova Cannon Improved Potential Cannon Advanced Micro-nuke Launcher [Rating: 216] Favorites ----------- Power Quantum Reactor Engine Cooled Ion Engine Power Core Enhanced Nuclear Core Reactor Quantum Reactor Propulsion Armored Wheel Leg Aluminum Leg Wheel Armored Wheel Hover Unit Combat Antigrav System Utility Huge Storage Unit Device Advanced Sensor Array Storage Huge Storage Unit Processor Core Analyzer Hackware System Mapper Protection Centrium Medium Armor Plating Weapon Long-range Phase Cannon Energy Gun Precision Beam Rifle Energy Cannon Long-range Phase Cannon Ballistic Gun Advanced KE Penetrator Ballistic Cannon Bore Cannon Launcher Thermoblaster Special Weapon Remote Datajack Impact Weapon Heavy Flail Piercing Weapon Plasma Lance Build | -11 -10 -10 -9 -9 -9 -8 -8 -8 -7 -7 -7 -7 -7 -7 -6 -6 -6 -6 -6 -6 -5 -5 -5 -5 -5 -5 -4 -4 -4 -4 -4 -3 -3 -3 -2 -2 -2 -1 -1 ------- Run | Scr Mat Min Mat Min Exi Min Mat Sto Fac Was Fac Low Low Dat Pro Fac Ext Cet Arc Hub Fac Was Fac Upp Upp War Pro Fac Upp Upp Zhi Pro Res Tes Res Qua Sec Acc Com Slots Evolved 18 | . . . 2 . . . 2 . 2 . . . . . . 2 . . . . 2 . . . . . . 2 . . . . 2 . 2 . . 2 . Power 1 | . . . . . . . . . . . . . . . . . . . . . 1 . . . . . . . . . . . . . . . . . . Propulsion 4 | . . . 1 . . . . . . . . . . . . 1 . . . . . . . . . . . . . . . . . . 1 . . 1 . Utility 12 | . . . 1 . . . 2 . 1 . . . . . . 1 . . . . 1 . . . . . . 2 . . . . 2 . 1 . . 1 . Weapon 1 | . . . . . . . . . 1 . . . . . . . . . . . . . . . . . . . . . . . . . . . . . . Parts Attached 469 | . 6 1 14 . . . 23 13 5 . 36 5 . . 4 19 32 6 1 4 20 . 14 1 8 20 5 17 7 16 8 28 24 65 13 7 10 22 15 Power 36 | . 1 . 2 . . . 1 2 2 . . . . . . 1 1 1 . . 2 . 1 . 2 1 . . . . 2 1 2 6 3 2 . 1 2 Engine 11 | . 1 . 2 . . . 1 2 2 . . . . . . 1 . . . . . . . . 2 . . . . . . . . . . . . . . Core 3 | . . . . . . . . . . . . . . . . . 1 . . . 1 . . . . . . . . . . . . 1 . . . . . Reactor 22 | . . . . . . . . . . . . . . . . . . 1 . . 1 . 1 . . 1 . . . . 2 1 2 5 3 2 . 1 2 Propulsion 43 | . 2 1 4 . . . 3 2 . . 3 . . . . 2 2 . . . 1 . 2 . . 2 . . . . . . 3 3 5 . 1 5 2 Treads . | . . . . . . . . . . . . . . . . . . . . . . . . . . . . . . . . . . . . . . . . Leg . | . . . . . . . . . . . . . . . . . . . . . . . . . . . . . . . . . . . . . . . . Wheel 28 | . 2 1 4 . . . 3 2 . . 3 . . . . 2 2 . . . 1 . 2 . . 2 . . . . . . 2 2 . . . . . Hover 15 | . . . . . . . . . . . . . . . . . . . . . . . . . . . . . . . . . 1 1 5 . 1 5 2 Flight . | . . . . . . . . . . . . . . . . . . . . . . . . . . . . . . . . . . . . . . . . Utility 258 | . 3 . 2 . . . 13 2 1 . 18 5 . . 4 11 21 4 1 1 12 . 10 1 4 12 2 8 7 14 5 25 13 42 4 5 2 4 2 Device 161 | . 1 . 2 . . . 4 2 . . 11 3 . . 4 7 18 2 1 1 6 . 7 1 2 7 2 3 4 11 2 16 7 30 2 1 1 2 1 Storage 6 | . 2 . . . . . . . . . . . . . . . . . . . . . 1 . . . . . . . 1 1 . . 1 . . . . Processor 10 | . . . . . . . 2 . . . 1 1 . . . 2 . . . . . . . . . . . 1 . . . . . 1 . 1 . . 1 Hackware 5 | . . . . . . . . . 1 . . . . . . . . . . . 2 . . . . 2 . . . . . . . . . . . . . Protection 76 | . . . . . . . 7 . . . 6 1 . . . 2 3 2 . . 4 . 2 . 2 3 . 4 3 3 2 8 6 11 1 3 1 2 . Artifact . | . . . . . . . . . . . . . . . . . . . . . . . . . . . . . . . . . . . . . . . . Weapon 132 | . . . 6 . . . 6 7 2 . 15 . . . . 5 8 1 . 3 5 . 1 . 2 5 3 9 . 2 1 2 6 14 1 . 7 12 9 Energy Gun 31 | . . . 5 . . . 4 2 1 . 7 . . . . 3 . . . 2 . . 1 . . 1 2 2 . . . . . 1 . . . . . Energy Cannon 54 | . . . . . . . . . . . . . . . . 1 6 . . . . . . . . 1 . 6 . . 1 1 4 11 1 . 6 11 5 Ballistic Gun 20 | . . . . . . . 2 3 1 . 5 . . . . 1 . 1 . . 2 . . . 1 1 . 1 . 1 . . . . . . . . 1 Ballistic Cannon 4 | . . . . . . . . . . . 1 . . . . . 2 . . 1 . . . . . . . . . . . . . . . . . . . Launcher 15 | . . . 1 . . . . . . . . . . . . . . . . . 1 . . . 1 2 1 . . 1 . 1 2 2 . . 1 1 1 Special Weapon 1 | . . . . . . . . . . . 1 . . . . . . . . . . . . . . . . . . . . . . . . . . . . Impact Weapon 6 | . . . . . . . . 2 . . 1 . . . . . . . . . 2 . . . . . . . . . . . . . . . . . 1 Slashing Weapon . | . . . . . . . . . . . . . . . . . . . . . . . . . . . . . . . . . . . . . . . . Piercing Weapon 1 | . . . . . . . . . . . . . . . . . . . . . . . . . . . . . . . . . . . . . . . 1 Special Melee Weapon . | . . . . . . . . . . . . . . . . . . . . . . . . . . . . . . . . . . . . . . . . Unidentified Prototypes 54 | . . . 1 . . . 3 2 2 . 2 . . . . 1 . 2 . 1 1 . 1 . . 7 . 4 . . 5 . 2 13 . . 1 3 3 Corrupted Parts 1 | . . . . . . . . . . . . . . . . . . . . . . . . . 1 . . . . . . . . . . . . . . System Corruption 2 | . . . . . . . . . . . . . . . . . . . . . . . . . 2 . . . . . . . . . . . . . . Parts Lost 36 | . . . 1 . . . 1 . . 1 . . . . . 1 1 . . 2 2 . . . 2 . . . . . . . . 1 . . 1 1 22 Power 5 | . . . . . . . . . . . . . . . . . . . . . 1 . . . 1 . . . . . . . . . . . . . 3 Propulsion 9 | . . . . . . . . . . . . . . . . . . . . 1 . . . . . . . . . . . . . . . . . 1 7 Utility 12 | . . . . . . . . . . 1 . . . . . 1 . . . . 1 . . . . . . . . . . . . 1 . . 1 . 7 Weapon 10 | . . . 1 . . . 1 . . . . . . . . . 1 . . 1 . . . . 1 . . . . . . . . . . . . . 5 Highest Loss Streak 21 | . . . 1 . . . 1 . . 1 . . . . . 1 1 . . 1 1 . . . 2 . . . . . . . . 1 . . 1 1 21 To Critical Strikes . | . . . . . . . . . . . . . . . . . . . . . . . . . . . . . . . . . . . . . . . . Average Slot Usage (%) 94 | . 99 100 99 100 100 100 99 99 100 91 99 100 100 100 100 99 94 85 86 86 87 83 88 88 87 87 88 88 89 89 90 94 94 93 92 91 92 91 75 Engine 3 | . 14 14 11 11 11 11 9 8 7 7 7 7 7 7 7 6 1 . . . . . . . 1 5 . . . . . . . . . . . . . Reactor 4 | . . . . . . . . . . . . . . . . . . 4 6 6 4 5 11 11 9 2 5 5 5 5 7 10 9 8 7 8 8 8 5 Wheel 17 | . 3 28 33 33 33 33 27 27 23 23 22 23 23 23 23 26 21 13 13 13 11 11 11 11 11 13 17 15 15 15 15 15 13 14 . . . . . Hover 1 | . . . . . . . . . . . . . . . . . . . . . . . . . . . . . . . . . . . 20 21 21 23 21 Device 15 | . 13 14 22 22 22 22 21 18 15 15 14 19 15 15 15 13 13 12 13 13 11 11 11 11 11 10 11 12 13 14 14 15 19 20 25 26 25 25 20 Storage 6 | . 14 14 11 11 11 11 9 9 7 7 7 7 7 7 7 6 6 6 6 6 5 5 5 5 5 5 5 5 5 5 5 5 4 4 4 4 4 4 4 Processor 14 | . . . . . . . 4 9 7 7 7 10 15 15 15 20 20 20 20 20 17 17 17 17 17 17 17 21 21 21 21 21 19 19 17 17 17 15 11 Hackware 2 | . . . . . . . . . 7 7 7 . . . . . . . . . 4 . . . . 3 5 5 5 5 5 5 4 4 4 4 4 4 4 Protection 6 | . . . . . . . 9 9 7 3 6 7 7 7 7 5 5 6 6 6 6 11 10 11 10 7 5 7 6 5 5 4 8 7 4 4 4 5 3 Energy Gun 6 | . 28 28 21 22 22 22 9 12 10 15 10 15 15 15 15 13 . . . 2 1 . 2 5 3 3 4 1 . . . . . . . . . . . Energy Cannon 5 | . . . . . . . . . . . . . . . . . 9 6 6 6 5 5 2 . . 1 5 8 10 10 12 14 13 13 5 4 5 5 1 Ballistic Gun 4 | . . . . . . . 8 4 11 3 10 7 7 7 7 5 1 4 6 6 8 11 11 11 10 6 5 4 5 4 2 . . . . . . . . Naked Turns . | . . . . . . . . . . . . . . . . . . . . . . . . . . . . . . . . . . . . . . . . Heaviest Build 172 | 11 89 89 95 95 95 95 114 116 120 120 109 108 103 103 103 127 135 135 133 133 141 141 151 148 148 153 153 158 159 160 157 156 165 172 148 67 87 102 100 Greatest Support 87 | 20 26 32 48 36 36 36 36 36 36 36 36 36 36 36 36 48 56 56 56 56 56 56 56 56 56 60 60 60 60 60 60 60 60 64 70 70 70 87 84 Greatest Overweight (x) 4 | . 3 3 2 2 2 2 3 3 3 3 4 2 2 2 2 2 2 2 2 4 2 2 2 2 2 2 2 3 2 2 2 2 3 3 2 . 1 1 1 Average Overweight (x) 1 | . . 2 1 2 2 2 2 3 3 2 2 2 2 2 2 2 2 2 2 2 2 2 2 2 2 2 2 2 2 2 2 2 2 2 . . . . . Largest Inventory Capacity 25 | . 25 25 25 25 25 25 25 25 25 25 25 25 25 25 25 25 25 25 25 25 25 25 25 25 25 25 25 25 25 25 25 25 25 25 25 15 15 15 15 Average Capacity 23 | . 12 25 25 25 25 25 25 25 25 25 25 25 25 25 25 25 25 25 25 25 25 25 25 25 25 25 25 25 25 25 25 25 25 25 16 15 15 15 14 Most Carried 25 | . 13 22 25 25 25 25 25 25 25 25 25 25 25 25 25 25 25 25 25 25 25 25 25 25 25 25 25 25 25 25 25 25 25 25 25 15 15 15 15 Average Carried 23 | . 9 18 24 25 25 25 24 24 24 25 24 24 24 25 25 24 24 24 25 24 23 25 24 25 24 24 24 24 24 25 24 24 23 24 15 14 14 14 11 Final Capacity 25 | 8 25 25 25 25 25 25 25 25 25 25 25 25 25 25 25 25 25 25 25 25 25 25 25 25 25 25 25 25 25 25 25 25 25 25 15 15 15 15 5 Final Carried 25 | 6 12 22 25 25 25 25 25 25 25 25 25 25 25 25 25 25 25 25 25 24 25 25 25 25 25 24 25 24 25 25 25 25 23 25 15 15 15 15 5 Class Distribution -------------------- 30% | Hacker-Gunner 18% | Mutant 12% | Hacker-Mutant 12% | Scavenger-Gunner 7% | Commander-Gunner 7% | Gunner 5% | Skirmisher 4% | Commander-Mutant Dominant Class ---------------- Mutant | -10/Materials Mutant | -10/Mines Mutant | -9/Materials Mutant | -9/Mines Mutant | -9/Exiles Mutant | -8/Mines Mutant | -8/Materials Commander-Mutant | -8/Storage Commander-Gunner | -7/Factory Hacker-Mutant | -7/Waste Hacker-Gunner | -7/Factory Skirmisher | -7/Lower Caves Skirmisher | -7/Lower Caves Skirmisher | -7/Data Miner Skirmisher | -6/Proximity Caves Gunner | -6/Factory Gunner | -6/Extension Commander-Gunner | -6/Cetus Commander-Mutant | -6/Archives Scavenger-Gunner | -6/Hub_04(d) Scavenger-Gunner | -5/Factory Scavenger-Gunner | -5/Waste Scavenger-Gunner | -5/Factory Scavenger-Gunner | -5/Upper Caves Scavenger-Gunner | -5/Upper Caves Commander-Gunner | -5/Warlord Hacker-Gunner | -4/Proximity Caves Hacker-Gunner | -4/Factory Hacker-Gunner | -4/Upper Caves Hacker-Gunner | -4/Upper Caves Hacker-Gunner | -4/Zhirov Hacker-Gunner | -3/Proximity Caves Hacker-Gunner | -3/Research Hacker-Gunner | -3/Testing Hacker-Mutant | -2/Research Hacker-Mutant | -2/Quarantine Hacker-Mutant | -2/Section 7 Hacker-Mutant | -1/Access Hacker-Ninja | -1/Command Resources | -11 -10 -10 -9 -9 -9 -8 -8 -8 -7 -7 -7 -7 -7 -7 -6 -6 -6 -6 -6 -6 -5 -5 -5 -5 -5 -5 -4 -4 -4 -4 -4 -3 -3 -3 -2 -2 -2 -1 -1 ----------- Run | Scr Mat Min Mat Min Exi Min Mat Sto Fac Was Fac Low Low Dat Pro Fac Ext Cet Arc Hub Fac Was Fac Upp Upp War Pro Fac Upp Upp Zhi Pro Res Tes Res Qua Sec Acc Com Matter Collected 7767 | 200 60 10 185 9 . 32 728 156 40 . 805 71 28 . 67 332 669 196 55 181 129 . 559 51 189 250 82 157 121 221 . 417 276 708 . 128 212 205 238 Remotely . | . . . . . . . . . . . . . . . . . . . . . . . . . . . . . . . . . . . . . . . . Salvage Created 15829 | . 446 342 777 . . 118 1613 835 63 . 1176 . . . 86 796 1230 237 293 528 174 . 852 110 377 199 236 233 77 252 . 680 557 1410 25 128 388 791 800 Parts 706 | . 18 16 41 . . 6 74 45 7 . 60 . . . 4 31 50 15 17 24 23 . 37 5 13 7 12 8 1 13 . 27 13 64 1 5 19 26 24 Haulers Intercepted 14 | . 2 . 3 . . . 3 3 . . . . . . . . . . . . . . 1 . . . . . . . . . 2 . . . . . . Recyclers Shooed 5 | . . 1 . . . . 1 . . . . . . . . 1 1 . . . . . . . . . . . . . . . . . . . . . 1 Parts Field Recycled . | . . . . . . . . . . . . . . . . . . . . . . . . . . . . . . . . . . . . . . . . Retrieved Matter . | . . . . . . . . . . . . . . . . . . . . . . . . . . . . . . . . . . . . . . . . Parts Self-Destructed 118 | . . . . . . . . . . . . . . . 7 . . . . . . . . 3 2 53 10 . 1 12 . 30 . . . . . . . Prevented 24 | . . . . . . . . . . . . . . . . . . . . . . . . 2 9 13 . . . . . . . . . . . . . Kills | -11 -10 -10 -9 -9 -9 -8 -8 -8 -7 -7 -7 -7 -7 -7 -6 -6 -6 -6 -6 -6 -5 -5 -5 -5 -5 -5 -4 -4 -4 -4 -4 -3 -3 -3 -2 -2 -2 -1 -1 ------- Run | Scr Mat Min Mat Min Exi Min Mat Sto Fac Was Fac Low Low Dat Pro Fac Ext Cet Arc Hub Fac Was Fac Upp Upp War Pro Fac Upp Upp Zhi Pro Res Tes Res Qua Sec Acc Com Combat Hostiles Destroyed 237 | . 8 8 12 . . 5 27 11 1 . 15 . . . 1 8 17 3 1 7 7 . 5 1 7 5 10 4 1 7 . 13 6 21 . . 7 7 12 Melee 4 | . . . . . . . . . . . . . . . . . . . . . . . . . . . . . . . . . . . . . . . 4 Guns 111 | . 8 8 10 . . 5 27 9 1 . 13 . . . 1 8 1 1 . 4 2 . 4 1 1 1 4 1 . 1 . . . . . . . . . Cannons 68 | . . . . . . . . . . . . . . . . . 12 2 1 3 . . 1 . . 4 2 3 . 2 . 9 4 16 . . 2 6 1 AOE 35 | . . . 2 . . . . . . . . . . . . . . . . . 5 . . . 5 . 3 . . 4 . 2 2 3 . . 4 . 5 Classes Destroyed 26 | . 4 4 1 . . 1 1 2 1 . . . . . 1 . 2 . . 2 . . . . . 2 . . . . . 2 1 1 . . . 1 . Worker 15 | . . 1 . . . . . 2 . . 5 . . . . 1 . . . 2 . . 1 . . . . . . . . . 1 . 1 . 1 . . Builder 3 | . . . . . . . . . . . . . . . . . . . . 2 . . . . . . . . . . . . . . . . . 1 . Tunneler 2 | . . 1 . . . . 1 . . . . . . . . . . . . . . . . . . . . . . . . . . . . . . . . Hauler 14 | . 2 . 3 . . . 3 3 . . . . . . . . . . . . . . 1 . . . . . . . . . 2 . . . . . . Recycler 14 | . . 2 2 . . . 1 . . . 2 . . . . 2 1 . . . . . 2 . . . . . . . . . . 1 . 1 . . . Carrier 1 | . . . . . . . . . . . . . . . . . . . . . . . . . . . . . . . . 1 . . . . . . . Minesweeper 2 | . . . . . . . . . . . . . . . 1 . . . . . . . . 1 . . . . . . . . . . . . . . . Mechanic 1 | . . . . . . . . 1 . . . . . . . . . . . . . . . . . . . . . . . . . . . . . . . Operator 15 | . . . . . . . . 1 1 . 1 . . . . 2 . . 6 . . . . . . . . . . . . . 1 1 . . 2 . . Watcher 26 | . 1 . 1 . . . 3 1 . . 3 . . . . 2 2 1 . 1 . . 4 . . . . 2 . . . . . 2 . . . 2 1 Swarmer 56 | . 2 3 3 . . 4 4 . . . 3 . . . . 1 4 . . 2 5 . . . 3 . 8 . . 4 . 3 . 3 . . 4 . . Grunt 75 | . 6 . 6 . . . 15 8 . . 5 . . . 1 2 . . . 3 . . 1 1 3 . 2 2 . . . 1 4 3 . . 2 5 5 Brawler 2 | . . . . . . . . . . . . . . . . . . . . . . . . . . 2 . . . . . . . . . . . . . Duelist 5 | . . . . . . . 1 . . . . . . . . 2 . . . . . . . . . 1 . . . . . . . . . . 1 . . Protector 2 | . . . . . . . . . . . . . . . . . . . . . . . . . . 1 . . . . . 1 . . . . . . . Sentry 43 | . . . 3 . . . 7 3 . . 4 . . . . 1 9 . 1 1 . . 1 . 1 . . 2 1 1 . 3 1 3 . . . 1 . Demolisher 1 | . . . . . . . . . . . . . . . . . . . . . . . . . . . . . . . . 1 . . . . . . . Specialist 1 | . . . . . . . . . . . . . . . . . . . . 1 . . . . . . . . . . . . . . . . . . . Hunter 7 | . . . . . . 1 . . . . 1 . . . . 2 . . . . . . 1 . . . . . . 2 . . . . . . . . . Programmer 21 | . . . . . . . . . 1 . 2 . . . . . . . . . 2 . 2 . . . . . . . . 4 . 8 . . . . 2 Heavy 1 | . . . . . . . . . . . . . . . . . . . . . . . . . . . . . . . . . . . . . . 1 . Behemoth 2 | . . . . . . . . . . . . . . . . . 2 . . . . . . . . . . . . . . . . . . . . . . Cetus Guard 3 | . . . . . . . . . . . . . . . . . . 3 . . . . . . . . . . . . . . . . . . . . . Enhanced Grunt 1 | . . . . . . . . . . . . . . . . . . . . 1 . . . . . . . . . . . . . . . . . . . Striker 5 | . . . . . . . . . . . . . . . . . . . . . . . . . . . . . . . . . 1 2 . . . . 2 Executioner 3 | . . . . . . . . . . . . . . . . . . . . . . . . . . 1 . . . . . . . . . . . . 2 Alpha 7 2 | . . . . . . . . . . . . . . . . . . . . . . . . . . . . . . . . . . 1 . . . . 1 Protovariant P 1 | . . . . . . . . . . . . . . . . . . . . . . . . . . . . . . . . . . 1 . . . . . Assembled 5 | . . 5 . . . . . . . . . . . . . . . . . . . . . . . . . . . . . . . . . . . . . Savage 2 | . . . . . . . . . . . . . . . . . 2 . . . . . . . . . . . . . . . . . . . . . . Guerrilla 1 | . . . . . . . . . . . . . . . . . 1 . . . . . . . . . . . . . . . . . . . . . . Best Kill Streak 10 | . 3 4 4 . . 5 7 10 1 . 7 . . . 1 3 6 2 3 4 5 . 4 2 7 5 4 2 1 4 . 3 3 4 1 1 5 4 6 Combat Bots Only 7 | . 2 4 4 . . 5 5 3 1 . 3 . . . 1 3 6 2 1 2 5 . 1 1 7 5 4 2 1 4 . 2 3 3 . . 4 3 5 Max Kills in Single Turn 4 | . 1 2 2 . . 1 1 1 2 . 3 . . . 1 1 3 1 1 3 4 . 1 1 3 1 1 1 1 2 . 3 2 2 1 1 4 1 3 Gunslinging 1 | . . 1 . . . . . . . . . . . . . . . . . . . . . . . . . . . . . . . . . . . . . Exploded 4 | . . . 1 . . . . . . . . . . . . . . . . . 4 . . . 3 . 1 . . 2 . 2 2 1 . . 3 . 3 Melee 1 | . . . . . . . . . . . . . . . . . . . . . . . . . . . . . . . . . . . . . . . 1 Uniques/NPCs Destroyed . | . . . . . . . . . . . . . . . . . . . . . . . . . . . . . . . . . . . . . . . . Combat | -11 -10 -10 -9 -9 -9 -8 -8 -8 -7 -7 -7 -7 -7 -7 -6 -6 -6 -6 -6 -6 -5 -5 -5 -5 -5 -5 -4 -4 -4 -4 -4 -3 -3 -3 -2 -2 -2 -1 -1 -------- Run | Scr Mat Min Mat Min Exi Min Mat Sto Fac Was Fac Low Low Dat Pro Fac Ext Cet Arc Hub Fac Was Fac Upp Upp War Pro Fac Upp Upp Zhi Pro Res Tes Res Qua Sec Acc Com Damage Taken 12835 | . 224 108 347 . . 138 799 517 43 24 378 . . . 23 772 731 33 54 533 156 . 340 15 406 12 124 226 . 140 . 183 58 858 16 107 94 361 5015 Core 2601 | . 55 67 38 . . 8 146 138 16 . 31 . . . . 74 101 . . 67 10 . 15 . 111 . 10 24 . 20 . . . 119 . . . . 1551 Absorbed by Shields 333 | . . . . . . . . . . . . . . . . . 13 32 . . . . . . . . 49 . . . . . . . . . . . 239 Redirected to Shielding 192 | . . . . . . . . . . . . . . . . . . . . . . . 23 . . . . . . 9 . 18 20 122 . . . . . Regen/Repaired (Parts) 658 | . . . . . . . 36 . . . 33 . . . . . . . . . . . . . . . . . . . . . . 552 . . 37 . . Core Remaining (%) 74 | 100 . 51 . . . 88 . 48 . . . . . . 93 . . . . 71 . . . . . . 85 . . . . 90 . 90 . . 100 . 3 Volleys Fired 718 | . 40 20 36 . . 11 91 50 6 . 48 . . . 5 39 41 10 30 18 6 . 26 4 7 10 14 31 1 7 . 27 23 48 2 7 14 26 20 Largest 3 | . 2 2 2 . . 2 2 2 3 . 3 . . . 3 3 3 3 3 3 3 . 3 3 3 3 3 3 3 3 . 3 3 3 1 1 3 3 3 Hottest 323 | . 90 90 112 . . 112 117 117 135 . 150 . . . 156 156 199 199 177 240 155 . 155 135 139 215 260 240 240 240 . 310 318 323 105 105 306 321 321 Shots Fired 1596 | . 80 40 72 . . 22 181 100 18 . 142 . . . 15 115 106 30 40 52 14 . 79 12 20 28 30 50 3 15 . 59 48 107 2 7 26 52 31 Gun 989 | . 80 40 70 . . 22 181 100 18 . 142 . . . 15 115 15 6 5 26 8 . 67 12 13 18 16 11 1 4 . . . . . . . . 4 Cannon 571 | . . . . . . . . . . . . . . . . . 91 24 35 26 4 . 12 . . 10 8 39 2 8 . 58 46 104 2 7 24 52 19 Launcher 36 | . . . 2 . . . . . . . . . . . . . . . . . 2 . . . 7 . 6 . . 3 . 1 2 3 . . 2 . 8 Special . | . . . . . . . . . . . . . . . . . . . . . . . . . . . . . . . . . . . . . . . . Kinetic 496 | . . . . . . . 124 9 11 . 84 . . . 5 39 55 20 10 26 8 . 52 8 7 10 8 11 1 4 . . . . . . . . 4 Thermal 852 | . 80 40 70 . . 22 57 91 6 . 26 . . . 10 76 5 10 30 26 4 . 12 . . 8 14 28 1 4 . 42 36 87 2 7 13 33 12 Explosive 23 | . . . 2 . . . . . . . . . . . . . . . . . 2 . . . . . . . . 3 . 1 2 3 . . 2 . 8 Electromagnetic 152 | . . . . . . . . . 1 . 32 . . . . . 46 . . . . . 15 4 13 . . . . . . . . 4 . . 11 19 7 Entropic 73 | . . . . . . . . . . . . . . . . . . . . . . . . . . 10 8 11 1 4 . 16 10 13 . . . . . Robot Hit Streak 34 | . 19 10 10 . . 21 29 22 14 . 20 . . . 22 34 17 14 14 8 15 . 19 13 8 22 30 11 12 13 . 10 17 21 5 7 15 10 17 Robot Miss Streak 3 | . 2 1 1 . . 1 3 2 1 . 2 . . . 1 2 1 2 2 3 . . 3 1 1 . 2 1 . 1 . 3 1 2 . . 1 2 1 Penetration Max 2 | . . . . . . . . . . . . . . . . . 1 . . 1 . . 1 . . . . . . . . 1 1 1 . . . . 2 Secondary Targets 11 | . . 3 1 . . . 4 2 . . . . . . . 1 . . . . . . . . . . . . . . . . . . . . . . . Max Gunslinging Chain 1 | . . 1 1 . . . 1 1 . . . . . . . 1 . . . . . . . . . . . . . . . . . . . . . . . Shots Hit Robots 1134 | . 64 30 52 . . 20 156 75 16 . 107 . . . 10 93 79 21 32 23 11 . 61 6 15 22 14 21 1 7 . 22 25 69 1 2 15 30 34 Core Hits 545 | . 21 16 24 . . 6 63 32 4 . 44 . . . 4 41 35 11 15 18 7 . 25 4 13 8 13 9 1 12 . 19 15 33 1 2 13 15 21 Critical Kills 26 | . . . . . . . . . . . . . . . . . 7 3 1 2 2 . 2 1 . . . . 1 . . 2 1 2 . . 1 1 . Critical Parts Destroyed 21 | . . . . . . . . . . . . . . . . . 8 2 2 1 . . 5 . 1 . . 1 . . . . . . . . . . 1 Critical Strikes 108 | . 2 . 3 . . 1 8 8 1 . . . . . 1 3 19 7 3 3 2 . 8 1 1 5 3 5 1 1 . 6 6 7 . . 1 1 1 Burn 26 | . 2 . 3 . . 1 8 8 . . . . . . 1 3 . . . . . . . . . . . . . . . . . . . . . . . Meltdown 9 | . . . . . . . . . . . . . . . . . 1 . . . . . . . . . . . 1 . . 2 1 2 . . 1 1 . Destroy 45 | . . . . . . . . . . . . . . . . . 18 7 3 3 2 . 8 1 1 . . 1 . . . . . . . . . . 1 Corrupt 1 | . . . . . . . . . 1 . . . . . . . . . . . . . . . . . . . . . . . . . . . . . . Sunder 27 | . . . . . . . . . . . . . . . . . . . . . . . . . . 5 3 4 . 1 . 4 5 5 . . . . . Melee Attacks 16 | . . . . . . . . 2 . . 1 . . . . . . . . . 1 . . . . . . . . . . . . . . . . . 12 Kinetic 12 | . . . . . . . . . . . . . . . . . . . . . . . . . . . . . . . . . . . . . . . 12 Impact 4 | . . . . . . . . 2 . . 1 . . . . . . . . . 1 . . . . . . . . . . . . . . . . . . Slashing . | . . . . . . . . . . . . . . . . . . . . . . . . . . . . . . . . . . . . . . . . Piercing . | . . . . . . . . . . . . . . . . . . . . . . . . . . . . . . . . . . . . . . . . Sneak Attacks . | . . . . . . . . . . . . . . . . . . . . . . . . . . . . . . . . . . . . . . . . Combat Hostiles . | . . . . . . . . . . . . . . . . . . . . . . . . . . . . . . . . . . . . . . . . Follow-up Attacks . | . . . . . . . . . . . . . . . . . . . . . . . . . . . . . . . . . . . . . . . . Damage Inflicted 36441 | . 791 364 865 . . 349 2677 1365 316 . 2314 . . . 187 1763 2235 632 908 1193 681 . 1652 123 714 1079 774 1115 35 803 . 2133 1543 4640 35 72 1010 1499 2574 Guns 14800 | . 791 364 786 . . 349 2677 1365 316 . 2268 . . . 187 1763 251 144 104 554 201 . 1340 123 227 320 286 184 . 47 . . . . . . . . 153 Cannons 16328 | . . . . . . . . . . . . . . . . . 1984 488 804 376 151 . 312 . . 759 348 931 35 336 . 1825 1291 4185 35 72 528 1269 599 Explosions 4646 | . . . 79 . . . . . . . 46 . . . . . . . . 263 329 . . . 487 . 140 . . 420 . 308 252 455 . . 482 230 1155 Melee 667 | . . . . . . . . . . . . . . . . . . . . . . . . . . . . . . . . . . . . . . . 667 Ramming . | . . . . . . . . . . . . . . . . . . . . . . . . . . . . . . . . . . . . . . . . Kinetic 8634 | . . . . . . . 1784 96 200 . 1186 . . . 55 507 1029 324 181 404 201 . 1165 78 157 131 85 184 . 47 . . . . . . . . 820 Thermal 15376 | . 791 364 786 . . 349 893 1269 92 . 457 . . . 132 1256 153 308 727 526 151 . 312 . 30 189 341 173 35 72 . 808 572 3030 35 72 298 775 380 Explosive 3710 | . . . 79 . . . . . . . . . . . . . . . . . 329 . . . . . . . . 420 . 308 252 455 . . 482 230 1155 Electromagnetic 3829 | . . . . . . . . . 24 . 671 . . . . . 1053 . . 263 . . 175 45 527 . . . . . . . . 128 . . 230 494 219 Impact . | . . . . . . . . . . . . . . . . . . . . . . . . . . . . . . . . . . . . . . . . Slashing . | . . . . . . . . . . . . . . . . . . . . . . . . . . . . . . . . . . . . . . . . Piercing . | . . . . . . . . . . . . . . . . . . . . . . . . . . . . . . . . . . . . . . . . Entropic 4892 | . . . . . . . . . . . . . . . . . . . . . . . . . . 759 348 758 . 264 . 1017 719 1027 . . . . . Highest Corruption 11 | . . . 5 5 5 5 . . 2 6 6 4 4 4 4 3 3 . . 3 1 5 9 9 11 11 . . . . . 2 1 5 . . . . 5 Average Corruption 4 | . . . 5 5 5 5 . . 2 5 4 4 4 4 4 2 2 . . 2 1 4 7 9 9 11 . . . . . 1 1 3 . . . . 3 Corruption Purged 20 | . . . . . . . . . . . 4 . . . . 2 3 . . . . . . . . . . . . . . 2 1 8 . . . . . Corruption Blocked 8 | . . . . . . . . . . . . . . . . . . . . . . . . . . 8 . . . . . . . . . . . . . Effects 148 | . . . 7 3 5 5 . . 3 3 29 6 8 4 7 3 . . . 1 2 3 29 10 12 . . . . . . . . 6 . . . . 2 Message Errors 36 | . . . 1 2 . 1 . . . 2 9 4 3 1 2 . . . . . . 2 3 2 3 . . . . . . . . 1 . . . . . Matter Fused 46 | . . . 2 1 3 2 . . 2 . 9 . 2 1 1 1 . . . . . . 11 3 5 . . . . . . . . 2 . . . . 1 Heat Flow Errors 19 | . . . 2 . 1 1 . . . . 3 1 2 1 1 . . . . . . . 3 3 . . . . . . . . . . . . . . 1 Energy Discharges 11 | . . . . . . 1 . . 1 1 2 . . . 3 . . . . . 1 . 1 . 1 . . . . . . . . . . . . . . Parts Rejected 3 | . . . . . . . . . . . 1 . . . . . . . . . . 1 1 . . . . . . . . . . . . . . . . Data Loss (minor) 17 | . . . 1 . 1 . . . . . 2 1 1 . . 2 . . . . . . 3 1 2 . . . . . . . . 3 . . . . . Data Loss (major) 6 | . . . 1 . . . . . . . . . . 1 . . . . . 1 1 . 2 . . . . . . . . . . . . . . . . Misfires 4 | . . . . . . . . . . . 1 . . . . . . . . . . . 3 . . . . . . . . . . . . . . . . Alerts 2 | . . . . . . . . . . . . . . . . . . . . . . . . 1 1 . . . . . . . . . . . . . . Weapon Failures 4 | . . . . . . . . . . . 2 . . . . . . . . . . . 2 . . . . . . . . . . . . . . . . Overload Shots 1 | . . . . . . . . . . . . . . . . . . . . 1 . . . . . . . . . . . . . . . . . . . Overflow Damage 1081 | . . . . . . . . . . . 29 . . . . . 16 . 58 21 40 . 47 . 39 36 48 133 . . . 75 38 392 . . 1 69 39 Projectiles 868 | . . . . . . . . . . . . . . . . . 16 . 58 . . . 47 . . 36 48 133 . . . 75 38 364 . . 1 39 13 Explosions 213 | . . . . . . . . . . . 29 . . . . . . . . 21 40 . . . 39 . . . . . . . . 28 . . . 30 26 Melee . | . . . . . . . . . . . . . . . . . . . . . . . . . . . . . . . . . . . . . . . . Knockbacks 1 | . . . . . . . . . . . . . . . . . . 1 . . . . . . . . . . . . . . . . . . . . . Impact . | . . . . . . . . . . . . . . . . . . . . . . . . . . . . . . . . . . . . . . . . Kinetic 1 | . . . . . . . . . . . . . . . . . . 1 . . . . . . . . . . . . . . . . . . . . . Secondary . | . . . . . . . . . . . . . . . . . . . . . . . . . . . . . . . . . . . . . . . . Self-Inflicted Damage 280 | . . . 23 . . . . . . . . . . . . . . . . 80 . . . . 126 . . . . 31 . . . . . . . . 20 Shots 12 | . . . 1 . . . . . . . . . . . . . . . . 1 . . . . 8 . . . . 1 . . . . . . . . 1 Rammed . | . . . . . . . . . . . . . . . . . . . . . . . . . . . . . . . . . . . . . . . . Targets Rammed . | . . . . . . . . . . . . . . . . . . . . . . . . . . . . . . . . . . . . . . . . Kicked . | . . . . . . . . . . . . . . . . . . . . . . . . . . . . . . . . . . . . . . . . Crushed . | . . . . . . . . . . . . . . . . . . . . . . . . . . . . . . . . . . . . . . . . Highest Temperature 409 | . 222 240 233 . 64 184 228 187 46 . 233 195 81 82 84 378 281 207 144 248 80 . 197 198 196 193 196 186 153 190 . 198 194 409 . . . . 91 Average Temperature 77 | . 74 86 33 . 46 21 50 71 19 . 49 105 44 58 44 84 71 98 45 76 41 . 84 89 125 117 107 81 79 105 . 98 79 151 . . . . 91 Received Heat Transfer 2038 | . 117 . 147 . . . 495 324 24 . 150 . . . 6 117 264 4 . 114 . . 27 9 63 . . 57 . . . . 27 39 . 9 9 27 9 Effects 3 | . . . . . . . . . . . . . . . . . . . . . . . . . . . . . . . . . . 3 . . . . . Shutdowns 1 | . . . . . . . . . . . . . . . . . . . . . . . . . . . . . . . . . . 1 . . . . . Energy Bleed 1 | . . . . . . . . . . . . . . . . . . . . . . . . . . . . . . . . . . 1 . . . . . Short Circuit 1 | . . . . . . . . . . . . . . . . . . . . . . . . . . . . . . . . . . 1 . . . . . Siege Activations . | . . . . . . . . . . . . . . . . . . . . . . . . . . . . . . . . . . . . . . . . Robots Corrupted 7 | . . . . . . . . . . . 2 . . . . . 3 . . . . . . . 1 . . . . . . . . . . . 1 . . Combat Hostiles 6 | . . . . . . . . . . . 2 . . . . . 3 . . . . . . . 1 . . . . . . . . . . . . . . Parts Fried 25 | . . . . . . . . . 1 . 6 . . . . . 6 . . 1 . . . . 1 . . . . . . . . 1 . . 3 1 5 Impact Corruptions . | . . . . . . . . . . . . . . . . . . . . . . . . . . . . . . . . . . . . . . . . Robots Melted 13 | . . . . . . . 1 2 . . . . . . . . 1 . . . . . . . . . 1 . 1 . . 2 1 2 . . 1 1 . Combat Hostiles 11 | . . . . . . . . 2 . . . . . . . . 1 . . . . . . . . . 1 . 1 . . 2 . 2 . . 1 1 . Parts Melted 83 | . 5 1 4 . . 3 9 10 . . 2 . . . . 9 3 . 2 1 . . . . . 1 2 . 2 . . 8 4 12 . . 3 1 1 Heat Transferred 24144 | . 2144 966 2002 . . 814 2479 3293 185 . 679 . . . 333 2701 166 351 888 666 148 . 333 . 50 259 659 185 37 74 . 702 555 2032 37 74 296 666 370 Parts Sabotaged . | . . . . . . . . . . . . . . . . . . . . . . . . . . . . . . . . . . . . . . . . Parts Stolen . | . . . . . . . . . . . . . . . . . . . . . . . . . . . . . . . . . . . . . . . . Parts Stripped . | . . . . . . . . . . . . . . . . . . . . . . . . . . . . . . . . . . . . . . . . Power Chain Reactions 3 | . . . . . . . . . . . 1 . . . . . . . . . . . . . 2 . . . . . . . . . . . . . . Missiles Intercepted . | . . . . . . . . . . . . . . . . . . . . . . . . . . . . . . . . . . . . . . . . Alert | -11 -10 -10 -9 -9 -9 -8 -8 -8 -7 -7 -7 -7 -7 -7 -6 -6 -6 -6 -6 -6 -5 -5 -5 -5 -5 -5 -4 -4 -4 -4 -4 -3 -3 -3 -2 -2 -2 -1 -1 ------- Run | Scr Mat Min Mat Min Exi Min Mat Sto Fac Was Fac Low Low Dat Pro Fac Ext Cet Arc Hub Fac Was Fac Upp Upp War Pro Fac Upp Upp Zhi Pro Res Tes Res Qua Sec Acc Com Peak Influence 1693 | . 173 94 279 81 . 135 521 432 143 15 341 . . . . 480 190 535 373 1693 768 196 245 . . . . 317 . . . . 245 298 94 114 488 857 1048 Initial 683 | . . 9 3 81 . . 44 131 78 . . . . . . 26 149 82 180 50 683 166 120 . . . . . . . . . 11 . 46 45 53 255 481 Average 190 | . 81 61 129 81 . 99 264 283 73 1 107 . . . . 291 61 338 287 847 650 184 133 . . . . 55 . . . . 92 88 55 94 223 516 840 Maximum Alert Level 5 | . . . 1 . . . 2 2 . . 1 . . . . 2 . 2 1 5 3 . 1 . . . . 1 . . . . 1 1 . . 2 3 3 Low Security (%) 68 | . 100 100 62 100 . 100 36 23 100 100 86 . . . . 22 100 12 38 16 . 100 95 . . . . 98 . . . . 79 90 100 100 54 . . Level 1 21 | . . . 37 . . . 53 68 . . 13 . . . . 63 . 47 61 8 . . 4 . . . . 1 . . . . 20 9 . . 24 35 . Level 2 6 | . . . . . . . 9 7 . . . . . . . 13 . 40 . 17 64 . . . . . . . . . . . . . . . 20 42 20 Level 3 2 | . . . . . . . . . . . . . . . . . . . . 12 35 . . . . . . . . . . . . . . . . 22 79 Level 4 . | . . . . . . . . . . . . . . . . . . . . 36 . . . . . . . . . . . . . . . . . . . Level 5 . | . . . . . . . . . . . . . . . . . . . . 8 . . . . . . . . . . . . . . . . . . . High Security . | . . . . . . . . . . . . . . . . . . . . . . . . . . . . . . . . . . . . . . . . Max Security . | . . . . . . . . . . . . . . . . . . . . . . . . . . . . . . . . . . . . . . . . Squads Dispatched 48 | . 2 . 1 . . . 2 3 1 . 4 . . . . 3 1 . . 9 2 . 2 . 1 . . 2 . . . . 7 2 2 1 . 2 1 Investigation 12 | . 2 . . . . . 1 . . . 1 . . . . 1 1 . . 2 . . . . . . . . . . . . 1 . 1 . . 1 1 Extermination 8 | . . . . . . . . . 1 . 2 . . . . . . . . . 1 . 1 . . . . 1 . . . . . 2 . . . . . Reinforcement 22 | . . . 1 . . . 1 2 . . 1 . . . . 1 . . . 5 . . 1 . . . . 1 . . . . 6 . 1 1 . 1 . Assault 3 | . . . . . . . . . . . . . . . . . . . . 1 1 . . . 1 . . . . . . . . . . . . . . Garrison 3 | . . . . . . . . 1 . . . . . . . 1 . . . 1 . . . . . . . . . . . . . . . . . . . Intercept . | . . . . . . . . . . . . . . . . . . . . . . . . . . . . . . . . . . . . . . . . Searches Triggered . | . . . . . . . . . . . . . . . . . . . . . . . . . . . . . . . . . . . . . . . . Data Miner Redirects 3 | . . . . . . . . . . . . . . . . 1 . . . 1 1 . . . . . . . . . . . . . . . . . . Construction Impeded . | . . . . . . . . . . . . . . . . . . . . . . . . . . . . . . . . . . . . . . . . Haulers Reinforced 6 | . . . . . . . . . . . . . . . . 1 . . . 1 . . 1 . . . . . . . . . 3 . . . . . . Active Scanning Responses 2 | . . . . . . . . . . . . . . . . . . . . . . . . . . . . . . . . . . . . . . 1 1 Cargo Convoy Interrupts . | . . . . . . . . . . . . . . . . . . . . . . . . . . . . . . . . . . . . . . . . Stealth | -11 -10 -10 -9 -9 -9 -8 -8 -8 -7 -7 -7 -7 -7 -7 -6 -6 -6 -6 -6 -6 -5 -5 -5 -5 -5 -5 -4 -4 -4 -4 -4 -3 -3 -3 -2 -2 -2 -1 -1 --------- Run | Scr Mat Min Mat Min Exi Min Mat Sto Fac Was Fac Low Low Dat Pro Fac Ext Cet Arc Hub Fac Was Fac Upp Upp War Pro Fac Upp Upp Zhi Pro Res Tes Res Qua Sec Acc Com Distress Signals 79 | . 1 . . . . . 4 3 . . 1 . . . . . . 2 . 4 . . . . . . . . . . . 55 4 1 2 1 . . 1 Communications Jammed 51 | . . . . . . . . . . . . . . . . . . . . . . . . . . . . . . . . . . . . . . 6 45 Distress Signals 49 | . . . . . . . . . . . . . . . . . . . . . . . . . . . . . . . . . . . . . . 4 45 Times Spotted 398 | . 15 7 14 . . 5 36 23 4 5 28 . . . 2 21 31 13 15 35 5 2 12 1 7 4 9 7 1 4 . 7 8 30 2 1 6 19 19 Peak Tracking Total 9 | . 3 3 5 . . 4 5 4 2 6 4 . . . 1 4 5 5 2 7 5 3 2 1 8 3 5 2 1 2 . 2 3 4 1 1 1 6 9 Tactical Retreats 17 | . 1 . . . . . 2 1 . . 2 . . . . . 1 . . 1 . . 1 . 1 . . . . . . . . . . . 1 5 1 Traps | -11 -10 -10 -9 -9 -9 -8 -8 -8 -7 -7 -7 -7 -7 -7 -6 -6 -6 -6 -6 -6 -5 -5 -5 -5 -5 -5 -4 -4 -4 -4 -4 -3 -3 -3 -2 -2 -2 -1 -1 ------- Run | Scr Mat Min Mat Min Exi Min Mat Sto Fac Was Fac Low Low Dat Pro Fac Ext Cet Arc Hub Fac Was Fac Upp Upp War Pro Fac Upp Upp Zhi Pro Res Tes Res Qua Sec Acc Com Traps Triggered 28 | . . . . . . . . 1 1 . 5 . . . . 3 2 . . 1 1 . 2 . . . . 2 . . . 2 2 1 . . 1 . 4 Indirectly . | . . . . . . . . . . . . . . . . . . . . . . . . . . . . . . . . . . . . . . . . Trap Hack Attempts . | . . . . . . . . . . . . . . . . . . . . . . . . . . . . . . . . . . . . . . . . Triggered . | . . . . . . . . . . . . . . . . . . . . . . . . . . . . . . . . . . . . . . . . Disarmed 4 | . 4 . . . . . . . . . . . . . . . . . . . . . . . . . . . . . . . . . . . . . . Reprogrammed 19 | . . . . . . . . 1 4 . . . . . . . 6 . . . . . 4 . . . . . . . . . 4 . . . . . . Reused 3 | . . . . . . . . . . . . . . . . . . . . . . . . . . . . . . . . . 3 . . . . . . Traps Extracted . | . . . . . . . . . . . . . . . . . . . . . . . . . . . . . . . . . . . . . . . . Installed . | . . . . . . . . . . . . . . . . . . . . . . . . . . . . . . . . . . . . . . . . Triggered 14 | . . . . . . . . . . . 1 . . . . . . . . . . . . . . 9 . . . . . . 3 . . . . . 1 Machines | -11 -10 -10 -9 -9 -9 -8 -8 -8 -7 -7 -7 -7 -7 -7 -6 -6 -6 -6 -6 -6 -5 -5 -5 -5 -5 -5 -4 -4 -4 -4 -4 -3 -3 -3 -2 -2 -2 -1 -1 ---------- Run | Scr Mat Min Mat Min Exi Min Mat Sto Fac Was Fac Low Low Dat Pro Fac Ext Cet Arc Hub Fac Was Fac Upp Upp War Pro Fac Upp Upp Zhi Pro Res Tes Res Qua Sec Acc Com Machines Disabled 68 | . . . . . . . . 2 . . 1 . . . . 4 1 . 3 31 1 . 2 . . . . 7 . . . . 1 3 . 2 7 2 1 Max in Single Turn 19 | . . . . . . . . 1 . . 1 . . . . 1 1 . 1 19 1 . 1 . . . . 4 . . . . 1 1 . 1 3 1 1 Garrison Access 6 | . . . . . . . 1 1 . . . . . . . 1 . . . 1 . . . . . . . 1 . . . . . 1 . . . . . Network Hub 1 | . . . . . . . . . . . . . . . . . . . . 1 . . . . . . . . . . . . . . . . . . . Machines Sabotaged . | . . . . . . . . . . . . . . . . . . . . . . . . . . . . . . . . . . . . . . . . Garrisons Compromised . | . . . . . . . . . . . . . . . . . . . . . . . . . . . . . . . . . . . . . . . . Overloaded Fab Kills . | . . . . . . . . . . . . . . . . . . . . . . . . . . . . . . . . . . . . . . . . Hacking | -11 -10 -10 -9 -9 -9 -8 -8 -8 -7 -7 -7 -7 -7 -7 -6 -6 -6 -6 -6 -6 -5 -5 -5 -5 -5 -5 -4 -4 -4 -4 -4 -3 -3 -3 -2 -2 -2 -1 -1 --------- Run | Scr Mat Min Mat Min Exi Min Mat Sto Fac Was Fac Low Low Dat Pro Fac Ext Cet Arc Hub Fac Was Fac Upp Upp War Pro Fac Upp Upp Zhi Pro Res Tes Res Qua Sec Acc Com Machines Accessed 118 | . 7 1 4 . 1 . 10 7 3 . 9 . . 4 . 6 7 1 . 3 4 . 5 . . 5 . 5 . . 4 . 2 16 2 2 5 5 . Terminals 73 | . 5 1 2 . . . 7 6 2 . 8 . . . . 2 7 1 . 2 2 . 3 . . . . 2 . . . . 1 10 2 1 4 5 . Fabricators 5 | . . . . . . . . . . . . . . . . . . . . . 2 . . . . . . . . . . . 1 2 . . . . . Repair Stations 8 | . . . . . . . 1 . 1 . 1 . . . . 2 . . . . . . . . . . . . . . . . . 2 . . 1 . . Recycling Units 6 | . 2 . . . . . 1 . . . . . . . . 1 . . . . . . 1 . . . . 1 . . . . . . . . . . . Scanalyzers 5 | . . . 2 . . . . . . . . . . . . . . . . . . . . . . . . 1 . . . . . 1 . 1 . . . Garrison Access 7 | . . . . . . . 1 1 . . . . . . . 1 . . . 1 . . 1 . . . . 1 . . . . . 1 . . . . . Total Hacks 407 | . 23 6 11 . 1 . 36 18 5 . 24 . . 28 . 13 26 1 . 7 22 . 22 . . 6 . 25 . . 17 . 11 57 5 7 19 17 . Successful 257 | . 14 3 7 . 1 . 22 10 4 . 11 . . 28 . 6 16 1 . 2 16 . 7 . . 6 . 16 . . 17 . 9 32 1 3 15 10 . Failed 147 | . 8 3 4 . . . 14 8 1 . 12 . . . . 7 9 . . 5 6 . 15 . . . . 9 . . . . 2 25 4 4 4 7 . Catastrophic 19 | . 1 . 1 . . . . 1 1 . 1 . . . . 1 2 . . 1 1 . 4 . . . . 1 . . . . . 2 1 . . 1 . Database Lockouts 3 | . 1 . . . . . . . . . 1 . . . . . 1 . . . . . . . . . . . . . . . . . . . . . . Manual 182 | . 19 6 2 . . . 20 12 3 . 8 . . . . 4 17 1 . . 11 . 7 . . 1 . 14 . . . . 8 25 5 3 8 8 . Terminals 270 | . 20 6 6 . . . 30 16 4 . 22 . . . . 4 26 1 . 4 10 . 16 . . . . 18 . . . . 6 37 5 5 17 17 . Fabricators 24 | . . . . . . . . . . . . . . . . . . . . . 12 . . . . . . . . . . . 5 7 . . . . . Repair Stations 21 | . . . . . . . 3 . 1 . 2 . . . . 4 . . . . . . . . . . . . . . . . . 9 . . 2 . . Recycling Units 15 | . 3 . . . . . 1 . . . . . . . . 3 . . . . . . 4 . . . . 4 . . . . . . . . . . . Scanalyzers 12 | . . . 5 . . . . . . . . . . . . . . . . . . . . . . . . 2 . . . . . 3 . 2 . . . Garrison Access 13 | . . . . . . . 2 2 . . . . . . . 2 . . . 3 . . 2 . . . . 1 . . . . . 1 . . . . . Terminal Hacks 165 | . 7 3 2 . 1 . 11 8 2 . 7 . . 28 . 2 11 1 . 2 5 . 6 . . 6 . 8 . . 17 . 4 18 . 1 9 6 . Record 24 | . . . . . 1 . . . . . 1 . . 11 . . . . . . . . . . . 4 . . . . 5 . . . . . 2 . . Part Schematic 17 | . . . . . . . . . . . . . . 11 . . . . . . 1 . . . . . . 1 . . 4 . . . . . . . . Robot Schematic 3 | . . . . . . . . . . . . . . 3 . . . . . . . . . . . . . . . . . . . . . . . . . Robot Analysis 22 | . 4 . . . . . 2 1 . . . . . . . . . . . . . . . . . . . 1 . . 4 . . 7 . 1 . 2 . Prototype ID Bank 28 | . . 3 1 . . . 2 2 . . 3 . . 3 . 1 4 . . . 1 . . . . . . 1 . . 4 . . 1 . . 1 1 . Open Door 3 | . . . . . . . . . . . . . . . . . . 1 . . . . . . . 2 . . . . . . . . . . . . . Open DSF 1 | . . . . . . . . . . . 1 . . . . . . . . . . . . . . . . . . . . . . . . . . . . Level Access Points 3 | . . . . . . . . 1 . . . . . . . . . . . . . . . . . . . . . . . . . 1 . . 1 . . Branch Access Points 6 | . 1 . . . . . 1 . . . 1 . . . . 1 . . . . 1 . . . . . . . . . . . 1 . . . . . . Machine Index 2 | . 1 . . . . . . . . . . . . . . . . . . . . . . . . . . . . . . . . 1 . . . . . Terminal Index 6 | . . . . . . . 1 . . . . . . . . . 1 . . 1 . . 1 . . . . . . . . . . 1 . . 1 . . Garrison Index 1 | . . . . . . . . . . . . . . . . . . . . . . . . . . . . 1 . . . . . . . . . . . Alert Level 4 | . . . . . . . . . . . . . . . . . 1 . . . 1 . . . . . . 1 . . . . . 1 . . . . . Unreport Threat 5 | . . . . . . . . 1 . . . . . . . . 2 . . . 1 . . . . . . . . . . . . 1 . . . . . Locate Traps 13 | . . . 1 . . . 1 1 1 . 1 . . . . . 1 . . . . . 1 . . . . . . . . . 1 2 . . 1 2 . Disarm Traps 1 | . 1 . . . . . . . . . . . . . . . . . . . . . . . . . . . . . . . . . . . . . . Reprogram Traps 5 | . . . . . . . . 1 1 . . . . . . . 1 . . . . . 1 . . . . . . . . . 1 . . . . . . Security Status 1 | . . . . . . . . . . . . . . . . . . . . . . . . . . . . 1 . . . . . . . . . . . Recall Reinforcements 1 | . . . . . . . . . . . . . . . . . . . . . . . . . . . . . . . . . . . . . 1 . . Hauler Manifests 1 | . . . . . . . . . . . . . . . . . . . . . . . . . . . . . . . . . . 1 . . . . . Registered Components 4 | . . . . . . . . 1 . . . . . . . . . . . . . . 1 . . . . 1 . . . . . . . . . 1 . Registered Prototypes 1 | . . . . . . . 1 . . . . . . . . . . . . . . . . . . . . . . . . . . . . . . . . Zone Layout 13 | . . . . . . . 3 . . . . . . . . . 1 . . 1 . . 2 . . . . 1 . . . . 1 2 . . 2 . . Fabricator Hacks 6 | . . . . . . . . . . . . . . . . . . . . . 3 . . . . . . . . . . . 1 2 . . . . . Network Status 4 | . . . . . . . . . . . . . . . . . . . . . 1 . . . . . . . . . . . 1 2 . . . . . Load Schematic 1 | . . . . . . . . . . . . . . . . . . . . . 1 . . . . . . . . . . . . . . . . . . Build 1 | . . . . . . . . . . . . . . . . . . . . . 1 . . . . . . . . . . . . . . . . . . Repair Station Hacks 11 | . . . . . . . 2 . . . 2 . . . . 2 . . . . . . . . . . . . . . . . . 3 . . 2 . . Scan Component 7 | . . . . . . . 1 . . . 1 . . . . 2 . . . . . . . . . . . . . . . . . 2 . . 1 . . Repair 4 | . . . . . . . 1 . . . 1 . . . . . . . . . . . . . . . . . . . . . . 1 . . 1 . . Recycling Unit Hacks 1 | . . . . . . . . . . . . . . . . . . . . . . . 1 . . . . . . . . . . . . . . . . Retrieve Components 1 | . . . . . . . . . . . . . . . . . . . . . . . 1 . . . . . . . . . . . . . . . . Scanalyzer 6 | . . . 5 . . . . . . . . . . . . . . . . . . . . . . . . . . . . . . 1 . . . . . Insert Component 5 | . . . 4 . . . . . . . . . . . . . . . . . . . . . . . . . . . . . . 1 . . . . . Analyze 1 | . . . 1 . . . . . . . . . . . . . . . . . . . . . . . . . . . . . . . . . . . . Garrison Access Hacks 5 | . . . . . . . 1 1 . . . . . . . 1 . . . . . . . . . . . 1 . . . . . 1 . . . . . Seal Access 5 | . . . . . . . 1 1 . . . . . . . 1 . . . . . . . . . . . 1 . . . . . 1 . . . . . Unauthorized Hacks 63 | . 7 . . . . . 8 1 2 . 2 . . . . 1 5 . . . 8 . . . . . . 7 . . . . 4 7 1 2 4 4 . Terminals 35 | . 4 . . . . . 6 1 1 . 2 . . . . . 5 . . . 1 . . . . . . 3 . . . . . 2 1 1 4 4 . Track 4 | . 1 . . . . . 1 . . . . . . . . . 1 . . . . . . . . . . . . . . . . . . . 1 . . Assimilate 4 | . . . . . . . . . 1 . . . . . . . . . . . . . . . . . . . . . . . . 1 1 . . 1 . Botnet 14 | . 2 . . . . . 3 1 . . 1 . . . . . 1 . . . . . . . . . . 2 . . . . . . . . 2 2 . Detonate 5 | . . . . . . . 1 . . . 1 . . . . . . . . . . . . . . . . 1 . . . . . . . . 1 1 . Disrupt 2 | . . . . . . . . . . . . . . . . . 2 . . . . . . . . . . . . . . . . . . . . . . Operators 6 | . 1 . . . . . 1 . . . . . . . . . 1 . . . 1 . . . . . . . . . . . . 1 . 1 . . . Fabricators 15 | . . . . . . . . . . . . . . . . . . . . . 7 . . . . . . . . . . . 4 4 . . . . . Report 3 | . . . . . . . . . . . . . . . . . . . . . 1 . . . . . . . . . . . 1 1 . . . . . Liberate 4 | . . . . . . . . . . . . . . . . . . . . . 2 . . . . . . . . . . . 1 1 . . . . . Fabnet 5 | . . . . . . . . . . . . . . . . . . . . . 2 . . . . . . . . . . . 1 2 . . . . . Haulers 3 | . . . . . . . . . . . . . . . . . . . . . 2 . . . . . . . . . . . 1 . . . . . . Repair Stations 2 | . . . . . . . 1 . 1 . . . . . . . . . . . . . . . . . . . . . . . . . . . . . . Mechanics 2 | . . . . . . . 1 . 1 . . . . . . . . . . . . . . . . . . . . . . . . . . . . . . Recycling Units 9 | . 3 . . . . . 1 . . . . . . . . 1 . . . . . . . . . . . 4 . . . . . . . . . . . Monitor 2 | . 1 . . . . . . . . . . . . . . . . . . . . . . . . . . 1 . . . . . . . . . . . Reject 1 | . . . . . . . . . . . . . . . . . . . . . . . . . . . . 1 . . . . . . . . . . . Recyclers 1 | . . . . . . . . . . . . . . . . . . . . . . . . . . . . 1 . . . . . . . . . . . Mask 2 | . . . . . . . . . . . . . . . . 1 . . . . . . . . . . . 1 . . . . . . . . . . . Tunnel 3 | . 2 . . . . . 1 . . . . . . . . . . . . . . . . . . . . . . . . . . . . . . . . Scanalyzers 2 | . . . . . . . . . . . . . . . . . . . . . . . . . . . . . . . . . . 1 . 1 . . . Researchers 2 | . . . . . . . . . . . . . . . . . . . . . . . . . . . . . . . . . . 1 . 1 . . . Garrison Access . | . . . . . . . . . . . . . . . . . . . . . . . . . . . . . . . . . . . . . . . . Data Cores Recovered 3 | . . . . . . . . . . . 1 . . . . . . . . . . . . . . . . . . . . . . 1 . . 1 . . Used 1 | . . . . . . . . . . . 1 . . . . . . . . . . . . . . . . . . . . . . . . . . . . Hacking Detections 90 | . 5 1 4 . . . 8 6 2 . 8 . . . . 6 7 . . 3 3 . 4 . . . . 4 . . . . 1 14 2 2 5 5 . Full Trace Events 3 | . . . . . . . . . . . 1 . . . . . . . . 1 . . . . . . . . . . . . . . 1 . . . . Feedback Events . | . . . . . . . . . . . . . . . . . . . . . . . . . . . . . . . . . . . . . . . . Feedback Blocked . | . . . . . . . . . . . . . . . . . . . . . . . . . . . . . . . . . . . . . . . . Robot Schematics Acquired 3 | . . . . . . . . . . . . . . 3 . . . . . . . . . . . . . . . . . . . . . . . . . Robots Built . | . . . . . . . . . . . . . . . . . . . . . . . . . . . . . . . . . . . . . . . . Authchips . | . . . . . . . . . . . . . . . . . . . . . . . . . . . . . . . . . . . . . . . . Time . | . . . . . . . . . . . . . . . . . . . . . . . . . . . . . . . . . . . . . . . . Total Robot Build Rating . | . . . . . . . . . . . . . . . . . . . . . . . . . . . . . . . . . . . . . . . . Part Schematics Acquired 18 | . . . 1 . . . . . . . . . . 11 . . . . . . 1 . . . . . . 1 . . 4 . . . . . . . . Parts Built 2 | . . . . . . . . . . . . . . . . . . . . . 2 . . . . . . . . . . . . . . . . . . Authchips 1 | . . . . . . . . . . . . . . . . . . . . . 1 . . . . . . . . . . . . . . . . . . Time 58 | . . . . . . . . . . . . . . . . . . . . . 58 . . . . . . . . . . . . . . . . . . Total Part Build Rating 14 | . . . . . . . . . . . . . . . . . . . . . 14 . . . . . . . . . . . . . . . . . . Parts Repaired 4 | . . . . . . . 1 . . . 1 . . . . . . . . . . . . . . . . . . . . . . 1 . . 1 . . Time 144 | . . . . . . . 19 . . . 35 . . . . . . . . . . . . . . . . . . . . . . 54 . . 36 . . Parts Recycled . | . . . . . . . . . . . . . . . . . . . . . . . . . . . . . . . . . . . . . . . . Recycled Matter . | . . . . . . . . . . . . . . . . . . . . . . . . . . . . . . . . . . . . . . . . Retrieved Matter . | . . . . . . . . . . . . . . . . . . . . . . . . . . . . . . . . . . . . . . . . Retrieved Components 9 | . . . . . . . . . . . . . . . . . . . . . . . 9 . . . . . . . . . . . . . . . . Parts Scanalyzed 2 | . . . 1 . . . . . . . . . . . . . . . . . . . . . . . . . . . . . . 1 . . . . . Part Schematics Acquired 1 | . . . 1 . . . . . . . . . . . . . . . . . . . . . . . . . . . . . . . . . . . . Parts Damaged . | . . . . . . . . . . . . . . . . . . . . . . . . . . . . . . . . . . . . . . . . Bothacking | -11 -10 -10 -9 -9 -9 -8 -8 -8 -7 -7 -7 -7 -7 -7 -6 -6 -6 -6 -6 -6 -5 -5 -5 -5 -5 -5 -4 -4 -4 -4 -4 -3 -3 -3 -2 -2 -2 -1 -1 ------------ Run | Scr Mat Min Mat Min Exi Min Mat Sto Fac Was Fac Low Low Dat Pro Fac Ext Cet Arc Hub Fac Was Fac Upp Upp War Pro Fac Upp Upp Zhi Pro Res Tes Res Qua Sec Acc Com Used RIF Installer . | . . . . . . . . . . . . . . . . . . . . . . . . . . . . . . . . . . . . . . . . Robots Hacked 6 | . . . . . . . . . . . . . . . . . . . . . . . . . . . 1 . . . . . . 1 3 1 . . . Non-combat . | . . . . . . . . . . . . . . . . . . . . . . . . . . . . . . . . . . . . . . . . Combat 6 | . . . . . . . . . . . . . . . . . . . . . . . . . . . 1 . . . . . . 1 3 1 . . . Robot Hacks Applied . | . . . . . . . . . . . . . . . . . . . . . . . . . . . . . . . . . . . . . . . . Relay Couplers Released 4 | . . . . . . . . . . . . . . . . . . . . 3 . . . . . . . . . . . . . 1 . . . . . Machine Destruction 4 | . . . . . . . . . . . . . . . . . . . . 3 . . . . . . . . . . . . . 1 . . . . . Fabnet Peak Effective % 9 | . . . . . . . . . . . . . . . . . . . . . . . . . . . 6 6 6 6 6 2 2 2 9 9 9 3 3 Autooverrided 6 | . . . . . . . . . . . . . . . . . . . . . . . . . . . 1 . . . . . . 1 3 1 . . . Robots Rewired 24 | . . . . . . . . . . . . . . . . . 16 . . . . . . . 2 5 . . . . . 1 . . . . . . . Allies Hacked . | . . . . . . . . . . . . . . . . . . . . . . . . . . . . . . . . . . . . . . . . Hacks Repelled . | . . . . . . . . . . . . . . . . . . . . . . . . . . . . . . . . . . . . . . . . Allies | -11 -10 -10 -9 -9 -9 -8 -8 -8 -7 -7 -7 -7 -7 -7 -6 -6 -6 -6 -6 -6 -5 -5 -5 -5 -5 -5 -4 -4 -4 -4 -4 -3 -3 -3 -2 -2 -2 -1 -1 -------- Run | Scr Mat Min Mat Min Exi Min Mat Sto Fac Was Fac Low Low Dat Pro Fac Ext Cet Arc Hub Fac Was Fac Upp Upp War Pro Fac Upp Upp Zhi Pro Res Tes Res Qua Sec Acc Com Total Allies 60 | . . . . . . . . 10 1 . . . . . 1 . 23 5 . . . . . . 2 5 1 . . . . 1 . 2 4 1 . 4 . Largest Group 14 | . . . . . . . . 10 6 2 . . . . 1 1 13 14 14 13 . . . . 2 7 2 . . . . 1 . 1 3 1 . 3 1 Highest-Rated Group 845 | . . . . . . . . 173 106 32 . . . . 96 96 489 845 845 688 . . . . 60 323 74 . . . . 64 . 58 148 58 . 374 45 Highest-Rated Ally 152 | . . . . . . . . 29 26 16 . . . . 96 96 152 152 152 96 . . . . 30 65 62 . . . . 64 . 58 64 58 . 131 45 Total Orders 44 | . . . . . . . . . . . . . . . . . . . . . . . . . . . . . 12 9 . 12 9 1 1 . . . . STAY 3 | . . . . . . . . . . . . . . . . . . . . . . . . . . . . . . . . 1 . 1 1 . . . . EXPLORE 25 | . . . . . . . . . . . . . . . . . . . . . . . . . . . . . 6 6 . 8 5 . . . . . . RETURN 16 | . . . . . . . . . . . . . . . . . . . . . . . . . . . . . 6 3 . 3 4 . . . . . . Ally Attacks 438 | . . . . . . . . 51 31 2 . . . . 3 27 83 42 16 133 . . . . . 32 1 . . . . . . 2 3 2 . 10 . Total Damage 11538 | . . . . . . . . 607 304 30 . . . . 89 1157 1650 1092 355 4491 . . . . . 952 15 . . . . . . 90 141 89 . 476 . Kills 74 | . . . . . . . . 7 1 . . . . . 1 6 14 12 3 25 . . . . . 4 . . . . . . . . . . . 1 . Allies Corrupted 6 | . . . . . . . . . 1 . . . . . . . 1 . . 3 . . . . . . . . . . . . 1 . . . . . . Allies Melted 2 | . . . . . . . . . . . . . . . . . . . . . . . . . . . . . . . . . . . 1 . . 1 . Intel | -11 -10 -10 -9 -9 -9 -8 -8 -8 -7 -7 -7 -7 -7 -7 -6 -6 -6 -6 -6 -6 -5 -5 -5 -5 -5 -5 -4 -4 -4 -4 -4 -3 -3 -3 -2 -2 -2 -1 -1 ------- Run | Scr Mat Min Mat Min Exi Min Mat Sto Fac Was Fac Low Low Dat Pro Fac Ext Cet Arc Hub Fac Was Fac Upp Upp War Pro Fac Upp Upp Zhi Pro Res Tes Res Qua Sec Acc Com Robot Analysis Total 22 | . 4 . . . . . 2 1 . . . . . . . . . . . . . . . . . . . 1 . . 4 . . 7 . 1 . 2 . Derelict Logs Recovered 9 | . . 1 . . . . . . . . . 1 1 . . . . . . . . . . 1 1 . 1 . 2 1 . . . . . . . . . Drone Launches 32 | . . . . . . . . . . . . . . . . . . . . . . . . . . . . . 8 8 . 10 6 . . . . . . Drone Recoveries 29 | . . . . . . . . . . . . . . . . . . . . . . . . . . . . . 7 7 . 10 5 . . . . . . Exploration | -11 -10 -10 -9 -9 -9 -8 -8 -8 -7 -7 -7 -7 -7 -7 -6 -6 -6 -6 -6 -6 -5 -5 -5 -5 -5 -5 -4 -4 -4 -4 -4 -3 -3 -3 -2 -2 -2 -1 -1 ------------- Run | Scr Mat Min Mat Min Exi Min Mat Sto Fac Was Fac Low Low Dat Pro Fac Ext Cet Arc Hub Fac Was Fac Upp Upp War Pro Fac Upp Upp Zhi Pro Res Tes Res Qua Sec Acc Com Turns Passed 22158 | . 821 595 707 62 162 107 1398 829 544 85 1304 373 328 96 360 769 1350 264 637 313 442 93 923 314 376 883 482 822 495 465 258 1308 993 1852 115 197 391 398 247 Spaces Moved 14616 | 1 494 275 444 52 136 60 800 464 380 68 870 301 251 81 275 508 774 158 123 194 298 72 624 231 254 601 244 539 294 296 185 643 649 1192 164 352 504 535 230 Core 3 | . . . . . . . . . . . . . . . . . . . . . . . . . . . . . . . . . . . . . . . 3 Treads . | . . . . . . . . . . . . . . . . . . . . . . . . . . . . . . . . . . . . . . . . Legs 420 | 1 419 . . . . . . . . . . . . . . . . . . . . . . . . . . . . . . . . . . . . . . Wheels 12413 | . 75 275 444 52 136 60 800 464 380 68 870 301 251 81 275 508 774 158 123 194 298 72 624 231 254 601 244 539 294 296 185 643 649 1192 2 . . . . Hover 1780 | . . . . . . . . . . . . . . . . . . . . . . . . . . . . . . . . . . . 162 352 504 535 227 Flight . | . . . . . . . . . . . . . . . . . . . . . . . . . . . . . . . . . . . . . . . . Fastest Speed 40 | 120 120 130 115 120 120 120 120 135 135 120 120 120 120 120 120 120 120 130 130 130 130 130 130 130 130 129 129 129 129 129 129 129 129 129 48 48 48 40 40 Average Speed 117 | 120 138 134 119 120 120 120 121 135 135 126 123 120 120 120 120 120 122 130 130 130 130 130 130 130 130 129 129 129 129 129 129 129 129 129 49 48 52 44 51 Slowest Speed 190 | 120 190 135 126 120 120 120 135 135 135 135 150 120 120 120 120 120 130 130 130 160 130 130 130 130 130 130 129 146 129 129 129 129 146 146 129 48 108 109 160 Overloaded Moves . | . . . . . . . . . . . . . . . . . . . . . . . . . . . . . . . . . . . . . . . . Propulsion Burnouts . | . . . . . . . . . . . . . . . . . . . . . . . . . . . . . . . . . . . . . . . . Robots Hopped . | . . . . . . . . . . . . . . . . . . . . . . . . . . . . . . . . . . . . . . . . Cave-ins Triggered . | . . . . . . . . . . . . . . . . . . . . . . . . . . . . . . . . . . . . . . . . Teleports 1 | . . . . . . . . . . . . . . . . . . . . . . . . . . . . . . . 1 . . . . . . . . Exploration Rate (%) 46 | 2 80 55 36 20 53 14 64 78 14 81 32 55 47 70 42 17 85 65 80 36 10 68 16 40 40 92 44 15 88 67 61 76 26 94 5 38 25 14 10 Regions Visited 39 Branch Regions 25 Pre-discovered Areas 9 | . 2 1 . . 1 . 1 . . . . . . 1 . . . . . . . . . . . . . . . . 3 . . . . . . . . Known Exits Taken 29 | . 1 . . . . . 1 1 . . 1 1 1 1 1 1 1 1 1 1 . . 1 1 1 1 1 1 1 1 1 1 1 1 1 1 1 1 . Unknown Exits Taken 6 | 1 . 1 1 1 1 1 . . . . . . . . . . . . . . . . . . . . . . . . . . . . . . . . . Scrap Searched 17 | . . . . 1 . . . . . . . 3 3 . . . . . . . . . . . 1 . 3 . 2 2 . 2 . . . . . . . Spaces Dug 55 | . . . 8 . . . . . . . 1 . . . . . . . . . 1 . . . . . . 12 . 2 . 4 11 7 1 2 1 4 1 Terrain Destroyed 736 | . . . 14 . . . . . . . 10 . . . . . 6 1 5 181 21 . 16 3 16 21 17 90 2 54 . 53 43 76 1 3 10 25 68 Melee 2 | . . . . . . . . . . . 1 . . . . . . . . . 1 . . . . . . . . . . . . . . . . . . Projectile 236 | . . . . . . . . . . . . . . . . . 6 1 5 17 1 . 16 3 2 21 12 31 2 9 . 33 26 33 1 3 5 7 2 AOE 498 | . . . 14 . . . . . . . 9 . . . . . . . . 164 19 . . . 14 . 5 59 . 45 . 20 17 43 . . 5 18 66 Terrain Rammed . | . . . . . . . . . . . . . . . . . . . . . . . . . . . . . . . . . . . . . . . . Walls Destroyed . | . . . . . . . . . . . . . . . . . . . . . . . . . . . . . . . . . . . . . . . . Machines Disabled . | . . . . . . . . . . . . . . . . . . . . . . . . . . . . . . . . . . . . . . . . Actions | -11 -10 -10 -9 -9 -9 -8 -8 -8 -7 -7 -7 -7 -7 -7 -6 -6 -6 -6 -6 -6 -5 -5 -5 -5 -5 -5 -4 -4 -4 -4 -4 -3 -3 -3 -2 -2 -2 -1 -1 --------- Run | Scr Mat Min Mat Min Exi Min Mat Sto Fac Was Fac Low Low Dat Pro Fac Ext Cet Arc Hub Fac Was Fac Upp Upp War Pro Fac Upp Upp Zhi Pro Res Tes Res Qua Sec Acc Com Total 18338 | . 551 461 558 51 135 73 1103 572 404 67 1024 312 278 80 295 605 1105 204 575 221 339 71 683 235 281 692 385 625 404 359 205 1062 758 1418 201 371 610 658 307 Wait 1845 | . 3 155 25 . . 3 128 25 4 . 44 2 26 . 12 7 118 7 420 6 . . 8 . 3 7 122 11 102 41 . 340 42 39 5 . 72 53 15 Move 14578 | . 493 274 443 51 135 59 799 463 380 67 869 300 250 80 274 507 773 157 122 193 298 71 623 230 253 600 243 538 293 295 184 642 648 1191 163 351 503 534 229 Hop . | . . . . . . . . . . . . . . . . . . . . . . . . . . . . . . . . . . . . . . . . Pick Up 197 | . 6 10 18 . . . 26 4 4 . 14 1 1 . . 14 8 10 1 . 9 . 4 . 2 11 1 10 1 . 3 2 8 20 2 2 2 3 . Fast Attach 141 | . 1 . 4 . . . 10 5 3 . 12 1 . . . 4 9 3 . . 1 . 6 . 2 9 . 9 . . 7 2 12 26 3 . 3 6 3 Attach 94 | . . 1 2 . . . 5 . 2 . 3 . . . . 5 3 1 . 1 8 . 1 . 2 5 . 3 . . 3 . 5 9 8 . 5 12 10 Detach 46 | . . 1 . . . . 1 1 . . . 1 . . . 2 . . . . 2 . . . . 3 . . . . . . 4 4 5 . 5 12 5 Swap 239 | . 5 . 9 . . . 8 8 . . 21 4 . . 4 10 20 2 1 3 12 . 7 1 4 6 5 5 7 16 . 26 7 30 2 7 3 4 2 Drop 292 | . 3 . 21 . . . 35 14 5 . 12 1 1 . . 17 19 14 1 . 2 . 8 . . 27 . 18 . . 8 4 9 43 11 4 3 8 4 Fire 718 | . 40 20 36 . . 11 91 50 6 . 48 . . . 5 39 41 10 30 18 6 . 26 4 7 10 14 31 1 7 . 27 23 48 2 7 14 26 20 Melee 16 | . . . . . . . . 2 . . 1 . . . . . . . . . 1 . . . . . . . . . . . . . . . . . 12 Ram . | . . . . . . . . . . . . . . . . . . . . . . . . . . . . . . . . . . . . . . . . Kick . | . . . . . . . . . . . . . . . . . . . . . . . . . . . . . . . . . . . . . . . . Crush . | . . . . . . . . . . . . . . . . . . . . . . . . . . . . . . . . . . . . . . . . Escape Stasis 39 | . . . . . . . . . . . . . . . . . 8 . . . . . . . . . . . . . . 16 . 8 . . . . 7 Rewire 133 | . . . . . . . . . . . . 2 . . . . 106 . . . . . . . 8 14 . . . . . 3 . . . . . . . Trap . | . . . . . . . . . . . . . . . . . . . . . . . . . . . . . . . . . . . . . . . . Miscellaneous . | . . . . . . . . . . . . . . . . . . . . . . . . . . . . . . . . . . . . . . . . Route ------- -11/Scrapyard -10/Materials (discovered 4 exits: *Mat x3 / *Min) -10/Mines -9/Materials (discovered 2 exits: *Mat / [*Min]) -9/Mines (discovered 2 exits: *Mat / *Exi) -9/Exiles -8/Mines -8/Materials (discovered 4 exits: *Fac x2 / *Sto x2) -8/Storage -7/Factory -7/Waste -7/Factory (discovered 4 exits: *Fac x2 / *Low x2) -7/Lower Caves -7/Lower Caves -7/Data Miner -6/Proximity Caves -6/Factory (discovered 4 exits: Low x2 / *Ext x2) -6/Extension (discovered 2 exits: *Fac / *Cet) -6/Cetus (discovered 2 exits: *Fac / *Arc) -6/Archives (discovered 3 exits: *Fac / *Hub x2) -6/Hub_04(d) -5/Factory (discovered 2 exits: Upp x2) -5/Waste -5/Factory -5/Upper Caves -5/Upper Caves -5/Warlord -4/Proximity Caves -4/Factory (discovered 2 exits: *Upp x2) -4/Upper Caves -4/Upper Caves (discovered 2 exits: *Res / *Zhi) -4/Zhirov -3/Proximity Caves -3/Research (discovered 4 exits: *Res x2 / *Tes x2) -3/Testing -2/Research (discovered 2 exits: *Qua x2) -2/Quarantine -2/Section 7 -1/Access (discovered 2 exits: Sur / *Com) -1/Command To Epsilon Eridani History --------- Turn | Location | Event 1 | -11/Scrapyard | Discovered new exit (range 0) 1 | -11/Scrapyard | Entered Materials 262 | -10/Materials | Discovered new exit (range 9) 283 | -10/Materials | Identified exit to Mines 301 | -10/Materials | Build established: Mutant 356 | -10/Materials | Discovered new exit (range 4) 684 | -10/Materials | Discovered new exit (range 4) 796 | -10/Materials | Central database locked down 822 | -10/Materials | Entered Mines 1042 | -10/Mines | Received a Rocket Launcher from a helpful Derelict 1058 | -10/Mines | Assembled infested the area 1063 | -10/Mines | Assisted by a Guerilla fighting off Assembled 1400 | -10/Mines | Discovered new exit (range 7) 1417 | -10/Mines | Entered Materials 1417 | -9/Materials | Evolved 2 slots: Propulsion x1, Utility x1 1477 | -9/Materials | Discovered new exit (range 6) 1905 | -9/Materials | Discovered new exit (range 16) 2124 | -9/Materials | Entered Mines 2147 | -9/Mines | Discovered new exit (range 9) 2181 | -9/Mines | Deemed a non-threat by the Exiles lab entrance 2181 | -9/Mines | Discovered new exit (range 5) 2186 | -9/Mines | Entered Exiles 2219 | -9/Exiles | Met 8R-AWN 2236 | -9/Exiles | Met EX-HEX 2279 | -9/Exiles | Met EX-DEC 2298 | -9/Exiles | Learned location of Zion (-6) 2338 | -9/Exiles | Discovered new exit (range 10) 2348 | -9/Exiles | Entered Mines 2408 | -8/Mines | Discovered new exit (range 5) 2455 | -8/Mines | Entered Materials 2455 | -8/Materials | Evolved 2 slots: Utility x2 2482 | -8/Materials | Repaired Imp. Heat Sink 2684 | -8/Materials | Identified exit to Storage 3040 | -8/Materials | Discovered new exit (range 16) 3741 | -8/Materials | Discovered new exit (range 12) 3853 | -8/Materials | Entered Storage 4128 | -8/Storage | Identified exit to Factory 4166 | -8/Storage | Assisted by bots powering up and referring to "LRC-V3" 4195 | -8/Storage | Core integrity fell below 50% 4348 | -8/Storage | Garrison activated, responded to threat 4456 | -8/Storage | Build established: Commander-Mutant 4682 | -8/Storage | Entered Factory 4682 | -7/Factory | Accompanied by 5 allies 4682 | -7/Factory | Evolved 2 slots: Utility x1, Weapon x1 4983 | -7/Factory | Build established: Commander-Gunner 5116 | -7/Factory | Discovered new exit (range 15) 5226 | -7/Factory | Sucked down chute 5226 | -7/Factory | Entered Waste 5241 | -7/Waste | EMP discharged 5258 | -7/Waste | Spotted C-40 Crusher 5260 | -7/Waste | Spotted C-40 Crusher 5264 | -7/Waste | Crushed by Compactor (1 part destroyed, 1 dropped) 5267 | -7/Waste | Spotted C-40 Crusher 5281 | -7/Waste | Spotted C-40 Crusher 5285 | -7/Waste | 3 allies followed down the chute 5293 | -7/Waste | Discovered new exit (range 16) 5299 | -7/Waste | Spotted C-40 Crusher 5301 | -7/Waste | Spotted C-40 Crusher 5311 | -7/Waste | Entered Factory 5328 | -7/Factory | Identified exit to DSF 5445 | -7/Factory | Discovered new exit (range 12) 5624 | -7/Factory | Build established: Hacker-Gunner 6027 | -7/Factory | Discovered new exit (range 12) 6042 | -7/Factory | Identified exit to Factory 6331 | -7/Factory | Repaired Hpw. Field Laser 6598 | -7/Factory | Identified exit to Lower Caves 6598 | -7/Factory | Central database locked down 6615 | -7/Factory | Entered Lower Caves 6800 | -7/Lower Caves | Identified exit to Lower Caves 6890 | -7/Lower Caves | Encountered a Warlord checkpoint 6911 | -7/Lower Caves | Build established: Skirmisher 6988 | -7/Lower Caves | Entered another Lower Caves area 7260 | -7/Lower Caves | Discovered new exit (range 14) 7269 | -7/Lower Caves | Learned Factory terminal intel 7314 | -7/Lower Caves | Identified exit to Data Miner 7316 | -7/Lower Caves | Entered Data Miner 7316 | -7/Data Miner | Discovered new exit (range 6) 7339 | -7/Data Miner | Met Data Miner 7361 | -7/Data Miner | Learned location of Section 7 (-2) 7361 | -7/Data Miner | Acquired the access code to Warlord's prototype stash 7381 | -7/Data Miner | Received God Mode back door access code from Data Miner 7411 | -7/Data Miner | Identified exit to Proximity Caves 7412 | -7/Data Miner | Entered Proximity Caves 7493 | -6/Proximity Caves | Escorted by Enhanced Grunt 7582 | -6/Proximity Caves | Attracted the attention of an 0b10 checkpoint 7766 | -6/Proximity Caves | Discovered exit to Factory (range 4) 7772 | -6/Proximity Caves | Entered Factory 7772 | -6/Factory | Accompanied by 1 ally 7772 | -6/Factory | Evolved 2 slots: Propulsion x1, Utility x1 7773 | -6/Factory | Loaded intel: 28 terminal locations 7806 | -6/Factory | Garrison activated, responded to threat 7919 | -6/Factory | Identified exit to Lower Caves 7919 | -6/Factory | Identified exit to Extension 8081 | -6/Factory | Build established: Gunner 8093 | -6/Factory | Incoming investigation squad redirected 8541 | -6/Factory | Entered Extension 8641 | -6/Extension | Rescued a captive Derelict 8737 | -6/Extension | Rescued a captive Derelict 8945 | -6/Extension | Rescued a captive Derelict 8945 | -6/Extension | Rescued a captive Derelict 9269 | -6/Extension | Spotted B-75 Beast 9304 | -6/Extension | Destroyed B-75 Beast 9319 | -6/Extension | Spotted B-75 Beast 9359 | -6/Extension | Destroyed B-75 Beast 9474 | -6/Extension | Rescued a captive Derelict 9493 | -6/Extension | Rescued A7 9515 | -6/Extension | Central database locked down 9542 | -6/Extension | Rescued a captive Derelict 9856 | -6/Extension | Discovered new exit (range 10) 9857 | -6/Extension | Discovered new exit (range 6) 9867 | -6/Extension | Identified exit to Factory 9883 | -6/Extension | Identified exit to Cetus 9888 | -6/Extension | Disrupted transfer network 9891 | -6/Extension | Entered Cetus 9891 | -6/Cetus | Accompanied by 10 allies (A7) 9896 | -6/Cetus | Acquired a Cetus Manufacturing Module code from A7 9910 | -6/Cetus | Spotted Cetus Guard 9910 | -6/Cetus | Spotted Cetus Guard 9910 | -6/Cetus | Destroyed Cetus Guard 9913 | -6/Cetus | Spotted Cetus Guard 9914 | -6/Cetus | Allies destroyed Cetus Guard 9914 | -6/Cetus | Spotted Cetus Guard 9917 | -6/Cetus | Destroyed Cetus Guard 9923 | -6/Cetus | Allies destroyed Cetus Guard 9977 | -6/Cetus | Build established: Commander-Gunner 9987 | -6/Cetus | Started Cetus Manufacturing Module 9996 | -6/Cetus | Escorted A7 to Cetus Mainframe 10009 | -6/Cetus | Discovered new exit (range 16) 10012 | -6/Cetus | Manufactured an Enhanced Grunt 10037 | -6/Cetus | Manufactured an Enhanced Grunt 10042 | -6/Cetus | Spotted Cetus Guard 10042 | -6/Cetus | Spotted Cetus Guard 10042 | -6/Cetus | Destroyed Cetus Guard 10045 | -6/Cetus | Spotted Cetus Guard 10046 | -6/Cetus | Spotted Cetus Guard 10047 | -6/Cetus | Allies destroyed Cetus Guard 10050 | -6/Cetus | Allies destroyed Cetus Guard 10057 | -6/Cetus | Allies destroyed Cetus Guard 10062 | -6/Cetus | Manufactured an Enhanced Grunt 10062 | -6/Cetus | Discovered exit to Factory (range 16) 10073 | -6/Cetus | Met Revision 17 10087 | -6/Cetus | Manufactured an Enhanced Grunt 10112 | -6/Cetus | Manufactured an Enhanced Grunt 10145 | -6/Cetus | Identified exit to Archives 10155 | -6/Cetus | Entered Archives 10155 | -6/Archives | Accompanied by 14 allies (A7) 10160 | -6/Archives | Received a hacking code to weaken MAIN.C 10221 | -6/Archives | Discovered new exit (range 15) 10283 | -6/Archives | Discovered exit to Factory (range 16) 10342 | -6/Archives | Discovered new exit (range 14) 10487 | -6/Archives | Unable to access archive contents 10501 | -6/Archives | Build established: Commander-Mutant 10774 | -6/Archives | Identified exit to Hub_04(d) 10792 | -6/Archives | Entered Hub_04(d) 10792 | -6/Hub_04(d) | Accompanied by 13 allies 10869 | -6/Hub_04(d) | Garrison activated, responded to threat 10921 | -6/Hub_04(d) | Spotted B-75 Beast 10932 | -6/Hub_04(d) | Allies destroyed B-75 Beast 10968 | -6/Hub_04(d) | Incoming assault squad redirected 11054 | -6/Hub_04(d) | Discovered exit to Factory (range 10) 11077 | -6/Hub_04(d) | Network Hub disabled 11092 | -6/Hub_04(d) | Spotted Lightning 11092 | -6/Hub_04(d) | Spotted Lightning 11092 | -6/Hub_04(d) | Spotted Lightning 11105 | -6/Hub_04(d) | Entered Factory 11105 | -5/Factory | Evolved 2 slots: Power x1, Utility x1 11146 | -5/Factory | Found Prototype Processor 11146 | -5/Factory | Identified Exp. Targeting Computer 11234 | -5/Factory | Identified exit to Upper Caves 11240 | -5/Factory | Fabricated Centrium Wheel? 11405 | -5/Factory | First assault squad dispatched 11430 | -5/Factory | Incoming assault squad redirected 11547 | -5/Factory | Sucked down chute 11547 | -5/Factory | Entered Waste 11562 | -5/Waste | EMP discharged 11572 | -5/Waste | Spotted C-40 Crusher 11588 | -5/Waste | Spotted C-40 Crusher 11593 | -5/Waste | Build established: Scavenger-Gunner 11628 | -5/Waste | Discovered new exit (range 10) 11638 | -5/Waste | Identified exit to Factory 11640 | -5/Waste | Entered Factory 11983 | -5/Factory | Discovered exit to Upper Caves (range 15) 12563 | -5/Factory | Entered Upper Caves 12708 | -5/Upper Caves | Identified exit to Upper Caves 12730 | -5/Upper Caves | Encountered a Warlord checkpoint 12877 | -5/Upper Caves | Entered another Upper Caves area 12887 | -5/Upper Caves | Learned location of 1 exit from Factory 13150 | -5/Upper Caves | Attracted the attention of an 0b10 outpost 13180 | -5/Upper Caves | Discovered new exit (range 8) 13195 | -5/Upper Caves | Identified exit to Warlord 13196 | -5/Upper Caves | Destroyed 7 combat bots 13206 | -5/Upper Caves | System corruption reached 10% 13253 | -5/Upper Caves | Entered Warlord 13253 | -5/Warlord | Accompanied by 2 allies 13296 | -5/Warlord | System corruption cleaned by Quarantine Array 13514 | -5/Warlord | Found Prototype Device 13657 | -5/Warlord | Met Warlord 13670 | -5/Warlord | Opened Warlord's prototype stash 13675 | -5/Warlord | Found Prototype Reactor 13675 | -5/Warlord | Identified Vortex Chain Reactor 13682 | -5/Warlord | Warlord's base attacked by MAIN.C 13683 | -5/Warlord | Found Prototype Device 13683 | -5/Warlord | Identified Exp. Phase Shifter 13695 | -5/Warlord | Found Prototype Device 13695 | -5/Warlord | Identified System Purifier 13703 | -5/Warlord | Found Prototype Hackware 13703 | -5/Warlord | Identified System Mapper 13723 | -5/Warlord | Found Prototype Processor 13840 | -5/Warlord | Found Prototype Energy Cannon 13841 | -5/Warlord | Identified Vortex Driver 13847 | -5/Warlord | Found Vortex Driver 13849 | -5/Warlord | Found Vortex Driver 13866 | -5/Warlord | Build established: Commander-Gunner 13975 | -5/Warlord | Opened side exit 14032 | -5/Warlord | Warlord forces counterattacked 14053 | -5/Warlord | Spotted Executioner 14072 | -5/Warlord | Destroyed Executioner 14125 | -5/Warlord | Discovered new exit (range 10) 14135 | -5/Warlord | Identified exit to Proximity Caves 14136 | -5/Warlord | Entered Proximity Caves 14136 | -4/Proximity Caves | Accompanied by 1 ally 14428 | -4/Proximity Caves | Learned 4 Research zone layouts 14480 | -4/Proximity Caves | Build established: Hacker-Gunner 14609 | -4/Proximity Caves | Discovered new exit (range 8) 14617 | -4/Proximity Caves | Identified exit to Factory 14618 | -4/Proximity Caves | Entered Factory 14618 | -4/Factory | Evolved 2 slots: Utility x2 14619 | -4/Factory | Identified exit to Upper Caves 14619 | -4/Factory | Identified Exp. Armor Integrity Analyzer 15409 | -4/Factory | Discovered exit to Upper Caves (range 8) 15440 | -4/Factory | Entered Upper Caves 15734 | -4/Upper Caves | Attracted the attention of an 0b10 checkpoint 15924 | -4/Upper Caves | Discovered new exit (range 6) 15926 | -4/Upper Caves | Learned Research terminal intel 15934 | -4/Upper Caves | Identified exit to Upper Caves 15935 | -4/Upper Caves | Entered another Upper Caves area 15966 | -4/Upper Caves | Discovered new exit (range 27) 16003 | -4/Upper Caves | Identified exit to Research 16351 | -4/Upper Caves | Discovered new exit (range 12) 16399 | -4/Upper Caves | Identified exit to Zhirov 16400 | -4/Upper Caves | Entered Zhirov 16400 | -4/Zhirov | Discovered new exit (range 3) 16424 | -4/Zhirov | Met Zhirov 16447 | -4/Zhirov | Learned location of Quarantine (-2) 16447 | -4/Zhirov | Learned location of Testing (-3) 16447 | -4/Zhirov | Learned location of Command (-1) 16468 | -4/Zhirov | Zhirov requested help retrieving the SGEMP Prototype 16500 | -4/Zhirov | Found Alien Artifact 16500 | -4/Zhirov | Identified Integrated Dissipator 16500 | -4/Zhirov | Installed Integrated Dissipator, increased core heat dissipation (+20) 16562 | -4/Zhirov | Found Alien Artifact 16562 | -4/Zhirov | Identified Transdimensional Reconstructor 16562 | -4/Zhirov | Warped through subspace 16657 | -4/Zhirov | Identified exit to Proximity Caves 16658 | -4/Zhirov | Entered Proximity Caves 16976 | -3/Proximity Caves | Spotted B-86 Titan 17153 | -3/Proximity Caves | Attracted the attention of an 0b10 outpost 17791 | -3/Proximity Caves | Build established: Hacker-Mutant 17940 | -3/Proximity Caves | Discovered exit to Research (range 10) 17966 | -3/Proximity Caves | Entered Research 17966 | -3/Research | Evolved 2 slots: Utility x2 17967 | -3/Research | Identified exit to Testing 17968 | -3/Research | Loaded intel: 22 terminal locations 18003 | -3/Research | Discovered new exit (range 32) 18132 | -3/Research | Identified exit to Research 18166 | -3/Research | Revision forces began assault on 0b10 18285 | -3/Research | Met up with Revision 17++ 18366 | -3/Research | Found Antimissile System 18666 | -3/Research | Research terminal network offline 18737 | -3/Research | Spotted Striker 18739 | -3/Research | Destroyed Striker 18884 | -3/Research | Build established: Hacker-Gunner 18900 | -3/Research | Discovered exit to Research (range 10) 18959 | -3/Research | Entered Testing 19101 | -3/Testing | Found Prototype Energy Gun 19101 | -3/Testing | Identified Warp Gun 19382 | -3/Testing | Found Prototype Protection 19382 | -3/Testing | Identified Centrium Heavy Armor Plating 19540 | -3/Testing | Found Prototype Energy Cannon 19540 | -3/Testing | Identified Imp. Potential Cannon 19543 | -3/Testing | Found Prototype Energy Cannon 19543 | -3/Testing | Identified Potential Cannon 19619 | -3/Testing | Found Prototype Launcher 19619 | -3/Testing | Identified Adv. Micro-nuke Launcher 20095 | -3/Testing | Spotted PP-LXH1FR4PZR 20105 | -3/Testing | Destroyed PP-LXH1FR4PZR 20381 | -3/Testing | Repaired Centrium Medium Armor Plating 20615 | -3/Testing | Spotted Striker 20622 | -3/Testing | Spotted Striker 20631 | -3/Testing | Destroyed Striker 20648 | -3/Testing | Destroyed Striker 20670 | -3/Testing | Spotted Alpha 7 20682 | -3/Testing | Destroyed Alpha 7 20703 | -3/Testing | Stole the SGEMP Prototype 20811 | -3/Testing | Entered Research 20811 | -2/Research | Warlord forces began assault on 0b10 20811 | -2/Research | Evolved 2 slots: Propulsion x1, Utility x1 20812 | -2/Research | Identified exit to Quarantine 20921 | -2/Research | Research machine network offline 20923 | -2/Research | Discovered exit to Quarantine (range 7) 20926 | -2/Research | Entered Quarantine 21003 | -2/Quarantine | Cryocooling Duct disabled 21018 | -2/Quarantine | Ambient heat levels rising (+20) 21018 | -2/Quarantine | Non-combat units ordered to evacuate 21021 | -2/Quarantine | Found Alien Impact Weapon 21044 | -2/Quarantine | Local machine network offline 21088 | -2/Quarantine | Spotted Fortress 21105 | -2/Quarantine | Build established: Hacker-Mutant 21122 | -2/Quarantine | Discovered new exit (range 5) 21123 | -2/Quarantine | Identified exit to Section 7 21123 | -2/Quarantine | Entered Section 7 21256 | -2/Section 7 | Found Prototype Processor 21256 | -2/Section 7 | Identified Exp. Core Analyzer 21262 | -2/Section 7 | Identified exit to Access 21312 | -2/Section 7 | Spotted B-90 Cyclops 21373 | -2/Section 7 | Repaired Exp. Power Amplifier 21514 | -2/Section 7 | Entered Access 21514 | -1/Access | Evolved 2 slots: Propulsion x1, Utility x1 21515 | -1/Access | Loaded intel: 113 machine locations 21515 | -1/Access | Loaded intel: 78 trap records 21515 | -1/Access | Identified exit to Surface 21515 | -1/Access | Discovered exit to Surface (range 112) 21515 | -1/Access | Identified exit to Command 21515 | -1/Access | Discovered exit to Command (range 76) 21515 | -1/Access | Delivered the SGEMP Prototype to Zhirov 21515 | -1/Access | Zhirov transferred Access data 21681 | -1/Access | Zhirov warped through subspace 21862 | -1/Access | Found Prototype Launcher 21862 | -1/Access | Identified Gui. Micro-nuke Launcher 21869 | -1/Access | Found Prototype Device 21869 | -1/Access | Identified Active Sensor Suite 21912 | -1/Access | Entered Command 21912 | -1/Command | Accompanied by 1 ally 21985 | -1/Command | Spotted Alpha 7 21991 | -1/Command | Spotted B-99 Colossus 21998 | -1/Command | Identified Core Stripper 22000 | -1/Command | Destroyed Alpha 7 22016 | -1/Command | Spotted Executioner 22016 | -1/Command | Spotted Executioner 22016 | -1/Command | Spotted Executioner 22016 | -1/Command | Spotted Executioner 22016 | -1/Command | Spotted Striker 22016 | -1/Command | Spotted Striker 22016 | -1/Command | Spotted Alpha 7 22034 | -1/Command | Destroyed Striker 22049 | -1/Command | Destroyed Striker 22053 | -1/Command | Destroyed Executioner 22057 | -1/Command | Found Exp. Core Analyzer 22074 | -1/Command | Destroyed Executioner 22127 | -1/Command | Spotted B-99 Colossus 22146 | -1/Command | Spotted B-99 Colossus 22147 | -1/Command | Discovered exit to Surface (range 9) 22148 | -1/Command | Core integrity fell below 50% 22155 | -1/Command | Core integrity fell below 20% 22159 | *** | Escaped! Last Messages --------------- 22154_ B-99 Colossus activates siege mode. 22154_ Knocked back. 22154_ Penetrated by Slug. 22154_ Slug penetrates Wall. 22155_ Penetrated by Slug. 22156_ B-99 Colossus activates siege mode. 22156_ Knocked back. 22156_ Cmb. Linear Gravjet destroyed. 22156_ Knocked back. 22156_ Penetrated by Slug. 22156_ Slug penetrates Wall. 22156_ Penetrated by Slug. 22157_ Acquired 1 matter. 22158_ Penetrated by Slug. 22158_ Slug penetrates Wall. 22158_ Penetrated by Slug. 22158_ Slug penetrates Wall. 22158_ Dropped Lrg. Storage Unit. 22158_ Executioner suffers critical hit (Destroy). [Achievement: By A Hair] Map ----- +----------------------------------------------------+ | ?????????????????????????????????????????????????? | | ?????????????????????????????????????????????????? | | ?????????????????????????????????????????????????? | | ?????????????????????????????????????????????????? | | ?????????????????????????????????????????????????? | | ?????????????????????????????????????????????????? | | ?????????????????????????????????????????????????? | | ????????????????????????????????????????????????#? | | ??????????????????????????????????????????????? | | ??????????????????????????????????????????????? | | ??????????????????????????????????????????????? | | ??????????????????????????????????????????????" | | ??????????????????????????????????????????????" | | ??????????????????????????????????????????????" | | ????????????????????????????????????????????#T | | ????????????????????????????????????????????#"" ! | | ????????????????????????????????????????????#"" | | ????????????????????????????????????????????#"" | | ???????????????????##############???????????# | | ???????????????????# %BB#####???????# | | ???????????????????# BB%##%#######?# | | ???????????????????# ^^ ^ ;%# ; ; %"### | | ???????????????????# !] ^ ^^^ ^% """ | | ???????????????????# ! % ^ %^^^^^^^^^ /% | | ???????????????????# "" ^ ^%^^ ^%h^ / | | ???????????????????# @" ^ ^ E^^^^h^/%= %[ | | ???????????????????# ^ ^^^^^ ^^^^/ [!*![ | | ???????????????????# ^ ^^^ ^^^^##"""""" | | ???????????????????# ^ BB; # ; # ####!!==%! | | ???????????????????# BB#########??#==!![[ | | ???????????????????# #??????????#!*==! | | ???????????????????##############?????????##!=!| % | | ??????????????????????????????????????????#" ![ | | ???????????????????????????????????########" | | ???????????????????????????????????# %" | | ???????????????????????????????????# !" | | ???????????????????????????????????# =%/ ! | | ???????????????????????????????????# !""""##/ | | ???????????????????????????????????# % = " ### | | ??????????????????????????????#########/##"%##### | | ????????????????????????? !/ ! | | ????????????????????????????????#######*% * | | ??????????????????????????????????????#[%! | | ?????????????????????????????????????#" | | ?????????????????????????????????????## | | ??????????????????????????????????????# | | ??????????????????????????????????????####"" ##### | | ?????????????????????????????????????????### #???? | | ???????????????????????????????????????????# #???? | | ??????????????????????????????????????????? #???? | +----------------------------------------------------+ Best States ------------- Heat Dissipation 256 Coolant Potential 120 Energy Generation 75 Energy Capacity 700 Matter Stores 300 Matter Capacity 600 Sight Range 16 Robot Scan Range 20 Terrain Scan Density 10 Jamming Range 16 Power Amplification 70 EM Shielding 4 Armor Coverage 375 Resistance: KI 50 Resistance: TH 35 Resistance: EX 20 Resistance: EM 20 Resistance: I 20 Resistance: S 20 Resistance: P 20 Utility Shielding 90 Weapon Cycling 15 Phase Shifting 20 Evasion (%) 77 Targeting Accuracy 8 Core Analysis 8 Armor Integrity Analysis 50 Energy Filtering 50 Particle Charging 30 Offensive Hacking 30 Authchip Count 4 Item Schematics ----------------- Structural Scanner | -9/Materials | Scanalyzed Combat Drone Bay | -7/Data Miner | Free Lgt. Regenerative Plating | -7/Data Miner | Free Cld. Cesium-ion Thruster | -7/Data Miner | Free Gravity Neutralizer | -7/Data Miner | Free Imp. Lightning Gun | -7/Data Miner | Free Antigrav System | -7/Data Miner | Free Imp. Launcher Guidance Computer | -7/Data Miner | Free Mass Driver | -7/Data Miner | Free Linear Gravjet | -7/Data Miner | Free Phase Gun | -7/Data Miner | Free Centrium Wheel | -7/Data Miner | Free Prc. Matter Filter | -5/Factory | Hacked Enh. Quantum Rifle | -4/Factory | Hacked Assault Drone Bay | -4/Zhirov | Free Exp. Heat Sink | -4/Zhirov | Free Exp. Optical Array | -4/Zhirov | Free Imp. Arc Thrower | -4/Zhirov | Free Robot Schematics ------------------ B-48 Gladiator | -7/Data Miner | Free G-50 Soldier | -7/Data Miner | Free A-15 Conveyor | -7/Data Miner | Free Fabricated ------------ Centrium Wheel | x2 | -5/Factory | Authchip Alien Tech Used ----------------- Integrated Dissipator Transdimensional Reconstructor Core Stripper Achievements -------------- Below By A Hair Challenges ------------ None Game ------ Seed MediumNuclearTerminator Manual? 0 Play Time 04:38:12 Cumulative 99.5 hours Start 2022.04.17 @ 00:04:11 End 2022.04.17 @ 23:09:20 Sessions 5 Manual Loads 0 Difficulty Adventurer Special Mode None Game No. 35 Rogue 0 Adventurer 35 Explorer 0 Win Type 0 Total 7 Types 4/1/0/0/0/0/0/1/1 Lore% 80 Gallery% 69 Achievement% 64 Wizard Run 0 Options --------- ASCII 0 Keyboard 0 Movement Numpad Keybinds 0 Fullscreen 2 Font 18/SmallcapsGlow Map View 76x50 Tactical HUD 1 Map Filters NONE Filters NONE Steam 1 RUN: 3314fde1-e324-405c-a7ea-28e14c865ad2